2CCN - Level 2 Cost Centre Name,,9CCN - Level 9 Cost Centre Name,9CCC - Level 9 Cost Centre Code,9AN - Level 9 Account Name,9AC - Level 9 Account Code,Transaction Description,Date Paid,Transaction Reference,Analysed Amount,2AC - Level 2 Account Codes,Supplier Name,Supplier Code
Gloucester City Council,23UE,Client Revs & Bens Contract,RT240,Bailiffs Fees,5368,Fees paid direct & VAT due on fees,01/02/2016,413763,47.64,NET,Bristow & Sutor,05450M
Gloucester City Council,23UE,Client Revs & Bens Contract,RT240,Bailiffs Fees,5368,VAT only invoice,01/02/2016,413762,0,NET,Bristow & Sutor,05450M
Gloucester City Council,23UE,Crematorium,HC200,Memorial Plaques,5053,wall plaque,01/02/2016,413769,107.7,NET,Treasured Memories Limited,11058H
Gloucester City Council,23UE,Crematorium,HC200,Memorial Plaques,5053,wal plaque,01/02/2016,413770,63.5,NET,Treasured Memories Limited,11058H
Gloucester City Council,23UE,Development Management,PT200,Basic Pay - Temporary Staff,2751,Temporary staff w/e 17/01/2016,01/02/2016,413702,1201.35,NET,The Oyster Partnership Limited,14900T
Gloucester City Council,23UE,REDACTED,REDACTED,REDACTED,REDACTED,REDACTED,01/02/2016,REDACTED,172,NET,REDACTED,REDACTED
Gloucester City Council,23UE,Gloucester Guildhall,LA100,Maintenance Of Equipment,5030,wooden floor refurbishment DEPOSIT,01/02/2016,413801,2200,NET,Williams Flooring (Nationwide) Ltd,16235R
Gloucester City Council,23UE,Homelessness,CH120,Rent In Advance,5516,Rent in Advance & Deposit,01/02/2016,413802,461.53,NET,Cgt Lettings,05899H
Gloucester City Council,23UE,Homelessness Prevention,CH122,Fees For Services Received,5350,Rent in Advance & Deposit,01/02/2016,413802,500,NET,Cgt Lettings,05899H
Gloucester City Council,23UE,Investment Property,RB500,Service Charges,3020,Kings Quarter S/C in advance,01/02/2016,412270,2655,NET,Alder King,02367D
Gloucester City Council,23UE,Planning Policy,PT300,Basic Pay - Temporary Staff,2751,temporary staff w/e 6/12/15,01/02/2016,412016,2209.74,NET,The Oyster Partnership Limited,14900T
Gloucester City Council,23UE,Safer Stronger Communities,FP841,Ni - Technical Staff,1559,Key Rings,01/02/2016,413707,921,NET,Icontact Advertising,05548T
Gloucester City Council,23UE,Safer Stronger Communities,FP841,Other Minor Supplies Services,5590,Video Camera,01/02/2016,413704,380,NET,Pinnacle Response,16179Z
Gloucester City Council,23UE,Aspire Admin Charges,LC105,Fees For Services Received,5350,DBBACS support 1/1/16-28/2/17,02/02/2016,413382,606.6,NET,Advanced Business Solutions,06072N
Gloucester City Council,23UE,Cemeteries,HC300,Operational Materials,5070,10 x style 300 safety helmets,02/02/2016,413761,78.3,NET,Safpro Industrial Supply Co,39190W
Gloucester City Council,23UE,Cemeteries,HC300,Operational Materials,5070,10 x style 300 safety helmets,02/02/2016,413771,78.3,NET,Safpro Industrial Supply Co,39190W
Gloucester City Council,23UE,Corporate Reporting /Financing,RC504,Audit Fees,5383,15/16 4th Installment Audit Fee,02/02/2016,413710,17993.25,NET,Kpmg,06498X
Gloucester City Council,23UE,Docks Complex - Services,RB100,Service Charges,3020,N Warehouse sanipod lease FEB-MAY16,02/02/2016,413160,422.24,NET,Wessex Products (Leasing) Ltd,03684C
Gloucester City Council,23UE,Flooding And Drainage,HE306,Maint Of Grounds - General,3030,gully clearance Plock Court/OITC,02/02/2016,413760,964.8,NET,Three Counties Drain Service,44033V
Gloucester City Council,23UE,Gl1 Emergency Works,RY160,Contract Payments,0020,building rental FEB-MAR16,02/02/2016,413797,1000,CAP,REDACTED,REDACTED
Gloucester City Council,23UE,Guildhall Bar And Caf�,LA210,Catering Provisions -Food,5110,Food w/e 24/01/2016,02/02/2016,413691,54.6,NET,Janes Pantry,24500W
Gloucester City Council,23UE,REDACTED,REDACTED,REDACTED,REDACTED,REDACTED,02/02/2016,REDACTED,638.02,NET,REDACTED,REDACTED
Gloucester City Council,23UE,Kings Quarter,RY146,Contract Payments,0020,GOLDEN EGG,02/02/2016,405261,3156.85,CAP,Wye Valley Demolition Ltd,07242C
Gloucester City Council,23UE,Kings Quarter,RY146,Contract Payments,0020,Transport Hub - Professional Fees,02/02/2016,413613,4995,CAP,Building Design Partnership Ltd,15758K
Gloucester City Council,23UE,Kings Quarter,RY146,Legal/Survey Fees -Land,0002,GOLDEN EGG,02/02/2016,405261,0,CAP,Wye Valley Demolition Ltd,07242C
Gloucester City Council,23UE,Off Street Car Parks,PP110,Fees For Services Received,5350,February 2016,02/02/2016,413711,582.66,NET,Parkeon Ltd,03238G
Gloucester City Council,23UE,Retail Market - Landlord,HM300,Cleaning / Domestic Equipment,5011,Service Period February 2016,02/02/2016,413604,19.87,NET,Initial Washroom Solutions,06143R
Gloucester City Council,23UE,REDACTED,REDACTED,REDACTED,REDACTED,REDACTED,02/02/2016,REDACTED,588.52,NET,REDACTED,REDACTED
Gloucester City Council,23UE,REDACTED,REDACTED,REDACTED,REDACTED,REDACTED,02/02/2016,REDACTED,1200,NET,REDACTED,REDACTED
Gloucester City Council,23UE,REDACTED,REDACTED,REDACTED,REDACTED,REDACTED,03/02/2016,REDACTED,50,NET,REDACTED,REDACTED
Gloucester City Council,23UE,City Museum And Art Gallery,LM200,General Repair/Maint Buildings,3000,City Museum roller shutter maintenance,03/02/2016,413765,200,NET,Pro Door Ltd,04760C
Gloucester City Council,23UE,Development Management,PT200,Advertising And Publicity,5702,Advertisement 28/01/2016,03/02/2016,413843,321.38,NET,Local World Ltd,08556P
Gloucester City Council,23UE,Development Management,PT200,Advertising And Publicity,5702,Advertisement 29/01/2016,03/02/2016,413844,175.3,NET,Local World Ltd,08556P
Gloucester City Council,23UE,Gloucester Guildhall,LA100,Maintenance Of Equipment,5030,Locksmith 07/12/2015,03/02/2016,413838,54.76,NET,Gloucester Locksmiths,18160C
Gloucester City Council,23UE,Green Garden Waste,HI105,Basic Pay - Temporary Staff,2751,Temporary staff w/e 22/01/2016,03/02/2016,413910,550.25,NET,One To One Recruitment,04752H
Gloucester City Council,23UE,Guildhall Bar And Caf�,LA210,Catering Provisions -Liquor,5111,Various Items,03/02/2016,413845,40.67,NET,Boc Ltd,59172L
Gloucester City Council,23UE,REDACTED,REDACTED,REDACTED,REDACTED,REDACTED,03/02/2016,REDACTED,600,NET,REDACTED,REDACTED
Gloucester City Council,23UE,REDACTED,REDACTED,REDACTED,REDACTED,REDACTED,03/02/2016,REDACTED,600,NET,REDACTED,REDACTED
Gloucester City Council,23UE,REDACTED,REDACTED,REDACTED,REDACTED,REDACTED,03/02/2016,REDACTED,400,NET,REDACTED,REDACTED
Gloucester City Council,23UE,REDACTED,REDACTED,REDACTED,REDACTED,REDACTED,03/02/2016,REDACTED,1850,NET,REDACTED,REDACTED
Gloucester City Council,23UE,REDACTED,REDACTED,REDACTED,REDACTED,REDACTED,03/02/2016,REDACTED,300,NET,REDACTED,REDACTED
Gloucester City Council,23UE,REDACTED,REDACTED,REDACTED,REDACTED,REDACTED,03/02/2016,REDACTED,310,NET,REDACTED,REDACTED
Gloucester City Council,23UE,Homelessness,CH120,Rent In Advance,5516,Rent in Advance,03/02/2016,413920,29,NET,REDACTED,REDACTED
Gloucester City Council,23UE,REDACTED,REDACTED,REDACTED,REDACTED,REDACTED,03/02/2016,REDACTED,748.56,NET,REDACTED,REDACTED
Gloucester City Council,23UE,Kings Quarter,RY146,Contract Payments,0020,Advertisement 29/01/2016,03/02/2016,413842,87.65,CAP,Local World Ltd,08556P
Gloucester City Council,23UE,REDACTED,REDACTED,REDACTED,REDACTED,REDACTED,03/02/2016,REDACTED,1200,NET,REDACTED,REDACTED
Gloucester City Council,23UE,Planning Policy,PT300,Basic Pay - Temporary Staff,2751,Temporary staff w/e 17/01/2016,03/02/2016,413703,2415.91,NET,The Oyster Partnership Limited,14900T
Gloucester City Council,23UE,Planning Policy,PT300,Basic Pay - Temporary Staff,2751,temporary staff w/e 13/12/15,03/02/2016,412310,2227.73,NET,The Oyster Partnership Limited,14900T
Gloucester City Council,23UE,Planning Policy,PT300,Basic Pay - Temporary Staff,2751,temporary staff w/e 20/12/15,03/02/2016,412583,2162.51,NET,The Oyster Partnership Limited,14900T
Gloucester City Council,23UE,Planning Policy,PT300,Basic Pay - Temporary Staff,2751,temporary staff w/e 10/1/16,03/02/2016,413156,2328.06,NET,The Oyster Partnership Limited,14900T
Gloucester City Council,23UE,Registration Of Electors,RS400,Postages,5400,IER Mailings Dec 15 - Jan 16,03/02/2016,413913,1053.33,NET,Royal Mail S.Wales & South West,35830S
Gloucester City Council,23UE,Civica It Contract,RT270,Contracted Services,6970,IT Services March 2016,04/02/2016,413850,47916.67,NET,Civica Uk Ltd,10841X
Gloucester City Council,23UE,Contact Centre,RB300,Postages,5400,Post 08/01 - 21/01 2016,04/02/2016,413909,1455.07,NET,Royal Mail S.Wales & South West,35830S
Gloucester City Council,23UE,Docks Complex - Catering Servs,RB110,Catering Provisions -Food,5110,Food,04/02/2016,413859,59.4,NET,Janes Pantry,24500W
Gloucester City Council,23UE,REDACTED,REDACTED,REDACTED,REDACTED,REDACTED,04/02/2016,REDACTED,1200,NET,REDACTED,REDACTED
Gloucester City Council,23UE,REDACTED,REDACTED,REDACTED,REDACTED,REDACTED,04/02/2016,REDACTED,500,NET,REDACTED,REDACTED
Gloucester City Council,23UE,REDACTED,REDACTED,REDACTED,REDACTED,REDACTED,04/02/2016,REDACTED,150,NET,REDACTED,REDACTED
Gloucester City Council,23UE,Homelessness,CH120,Board And Lodging,5515,various tenants,04/02/2016,413948,2474.09,NET,James Legge Property (Ltd),07844R
Gloucester City Council,23UE,Homelessness,CH120,Board And Lodging,5515,various tenants,04/02/2016,413951,760.86,NET,Kalmwood Ltd,08568G
Gloucester City Council,23UE,Homelessness,CH120,Board And Lodging,5515,various tenants,04/02/2016,413950,468.33,NET,Carbrey Housing Ltd,11098G
Gloucester City Council,23UE,Homelessness,CH120,Board And Lodging,5515,various tenants,04/02/2016,413946,6690.62,NET,REDACTED,REDACTED
Gloucester City Council,23UE,Homelessness,CH120,Board And Lodging,5515,various tenants,04/02/2016,413949,1312.55,NET,Dorchester Guest House,12298D
Gloucester City Council,23UE,REDACTED,REDACTED,REDACTED,REDACTED,REDACTED,04/02/2016,REDACTED,1187.45,NET,REDACTED,REDACTED
Gloucester City Council,23UE,Homelessness,CH120,Rent In Advance,5516,Rent in Advance & Deposit,04/02/2016,413953,368.2,NET,Cgt Lettings,05899H
Gloucester City Council,23UE,REDACTED,REDACTED,REDACTED,REDACTED,REDACTED,04/02/2016,REDACTED,489.44,NET,REDACTED,REDACTED
Gloucester City Council,23UE,Homelessness Prevention,CH122,Fees For Services Received,5350,Rent in Advance & Deposit,04/02/2016,413953,400,NET,Cgt Lettings,05899H
Gloucester City Council,23UE,REDACTED,REDACTED,REDACTED,REDACTED,REDACTED,04/02/2016,REDACTED,530,NET,REDACTED,REDACTED
Gloucester City Council,23UE,Investment Property,RB500,Lift Maintenance,3051,Guildhall stairlift works,04/02/2016,413394,401.3,NET,Pickerings Europe Ltd,58816U
Gloucester City Council,23UE,Lighting,GY009,Contract Payments,0020,Light Fitting Survey,04/02/2016,413628,492.88,CAP,Scs Installations Ltd,10383G
Gloucester City Council,23UE,Meet & Greet,FP309,Advertising And Publicity,5702,Coach Marking Enhanced,04/02/2016,413860,149,NET,Diversified Business Communications Uk Ltd,15016R
Gloucester City Council,23UE,The Fleece,RB530,General Repair/Maint Buildings,3000,Advertisement 25/01/2016,04/02/2016,413841,87.65,NET,Local World Ltd,08556P
Gloucester City Council,23UE,Tic Theatre Ticket Sales,LT107,Materials For Sale,5080,Sales for Audio Tours 2015,04/02/2016,413942,49,NET,Gloucester Civic Trust(St Michaels Tower),07484Z
Gloucester City Council,23UE,Tic Theatre Ticket Sales,LT107,Materials For Sale,5080,Ticket Sales 2016,04/02/2016,413957,228,NET,Kings Theatre,54213X
Gloucester City Council,23UE,Tic Theatre Ticket Sales,LT107,Materials For Sale,5080,Ticket Sales 'Aladdin',04/02/2016,413945,3426,NET,Tyger Productions,14645K
Gloucester City Council,23UE,Tic Theatre Ticket Sales,LT107,Materials For Sale,5080,Ticket Sales for 'Tower Talks' 2015,04/02/2016,413943,30,NET,Gloucester Civic Trust(St Michaels Tower),07484Z
Gloucester City Council,23UE,Tic Theatre Ticket Sales,LT107,Other Minor Income,9900,Ticket Sales 'Aladdin',04/02/2016,413945,-1.8,NET,Tyger Productions,14645K
Gloucester City Council,23UE,Tic Theatre Ticket Sales,LT107,Other Minor Income,9900,Ticket Sales for 'Tower Talks' 2015,04/02/2016,413943,-0.8,NET,Gloucester Civic Trust(St Michaels Tower),07484Z
Gloucester City Council,23UE,Tic Theatre Ticket Sales,LT107,Sale Of Goods And Services,9230,Sales for Audio Tours 2015,04/02/2016,413942,-2.04,NET,Gloucester Civic Trust(St Michaels Tower),07484Z
Gloucester City Council,23UE,Tic Theatre Ticket Sales,LT107,Sale Of Goods And Services,9230,Ticket Sales 2016,04/02/2016,413957,-19,NET,Kings Theatre,54213X
Gloucester City Council,23UE,Tic Theatre Ticket Sales,LT107,Sale Of Goods And Services,9230,Ticket Sales 'Aladdin',04/02/2016,413945,-285.5,NET,Tyger Productions,14645K
Gloucester City Council,23UE,Tic Theatre Ticket Sales,LT107,Sale Of Goods And Services,9230,Ticket Sales for 'Tower Talks' 2015,04/02/2016,413943,-1.25,NET,Gloucester Civic Trust(St Michaels Tower),07484Z
Gloucester City Council,23UE,Vehicles,RS140,Fuel,4012,Fuel,04/02/2016,413911,199.42,NET,Allstar Business Solutions Ltd (Arval),06594A
Gloucester City Council,23UE,16 Commercial Road,RB539,General Repair/Maint Buildings,3000,Access Scaffolding Hire,05/02/2016,413906,215,NET,King Scaffolding Ltd,16240Y
Gloucester City Council,23UE,16 Commercial Road,RB539,General Repair/Maint Buildings,3000,Scaffolding Hire,05/02/2016,413908,1898,NET,King Scaffolding Ltd,16240Y
Gloucester City Council,23UE,23 Westgate Street,RB534,General Repair/Maint Buildings,3000,Scaffolding Roofworks,05/02/2016,413905,4142,NET,King Scaffolding Ltd,16240Y
Gloucester City Council,23UE,Blackfriars,LA609,Fees For Services Received,5350,Red & Black Sash Hire,05/02/2016,413885,54,NET,Cotswold Chair Covers,13553B
Gloucester City Council,23UE,REDACTED,REDACTED,REDACTED,REDACTED,REDACTED,05/02/2016,REDACTED,160,NET,REDACTED,REDACTED
Gloucester City Council,23UE,Blackfriars,LA609,Security Equipment Serv/Repair,3038,Bleckfriars intruder alarm works 5/10/15,05/02/2016,413822,289.75,NET,Chubb Fire & Security Ltd,54582K
Gloucester City Council,23UE,Business Grants,GY007,Contract Payments,0020,Business Grant,05/02/2016,413900,76,CAP,Restore Counselling Service,14361D
Gloucester City Council,23UE,Business Transformation & Tech,RT700,Computer Software <5000,5425,Version 9 Upgrade,05/02/2016,413862,2480,NET,Capita Business Services Limited,54095C
Gloucester City Council,23UE,Business Transformation & Tech,RT700,Internet Service Provider Fees,5429,acct 505653401 FEB16,05/02/2016,413364,80,NET,Virgin Media Payments Ltd,09376J
Gloucester City Council,23UE,Business Transformation & Tech,RT700,Internet Service Provider Fees,5429,Blueyonder Multiuser Jan - Feb 2016,05/02/2016,413269,80,NET,Virgin Media Payments Ltd,09376J
Gloucester City Council,23UE,Business Transformation & Tech,RT700,Internet Service Provider Fees,5429,Modem User  Jan - Feb 2016,05/02/2016,413268,33,NET,Virgin Media Payments Ltd,09376J
Gloucester City Council,23UE,Business Transformation & Tech,RT700,Mobile Phones,5409,Charges January 2016,05/02/2016,413281,64.08,NET,Everything Everywhere Ltd (T-Mobile),57543S
Gloucester City Council,23UE,Business Transformation & Tech,RT700,Telephones And Fax,5410,Charges & Phone calls,05/02/2016,413614,111.69,NET,Virgin Media Business,01869B
Gloucester City Council,23UE,Business Transformation & Tech,RT700,Telephones And Fax,5410,Line Rental Jan - Feb 2016,05/02/2016,413270,16.99,NET,Virgin Media Payments Ltd,09376J
Gloucester City Council,23UE,Cemeteries,HC300,Basic Pay - Temporary Staff,2751,Temporary staff - w/e 24/01/2016,05/02/2016,413865,439.88,NET,Premiere Employment Group Ltd,55468Z
Gloucester City Council,23UE,Cemeteries,HC300,Basic Pay - Temporary Staff,2751,Temporary staff w/e 24/01/2016,05/02/2016,413866,439.88,NET,Premiere Employment Group Ltd,55468Z
Gloucester City Council,23UE,REDACTED,REDACTED,REDACTED,REDACTED,REDACTED,05/02/2016,REDACTED,156,NET,REDACTED,REDACTED
Gloucester City Council,23UE,Council Streetcare Team,HI101,Signs / Nameplates,3039,Various Locations,05/02/2016,413891,233.28,NET,Enterprise (Aol) Ltd,06695G
Gloucester City Council,23UE,Equalities,EH102,Fees For Services Received,5350,Static Security - Car Parks,05/02/2016,413902,1123.2,NET,Glevum Security Ltd,03249B
Gloucester City Council,23UE,Gloucester Guildhall,LA100,Operational Equipment <5000,5012,White & Black Gaffa tape,05/02/2016,412561,48.24,NET,Directa Uk Ltd,05387T
Gloucester City Council,23UE,Gloucester Guildhall,LA100,Subscriptions,5600,Membership Charge,05/02/2016,413989,91.25,NET,Gloucester City Safe,14709J
Gloucester City Council,23UE,Grants To Voluntary Sector,FG100,Abcd Grants,7100A,Grant 2016,05/02/2016,413981,500,NET,Carrie Godwin C/O The Beacon,16230B
Gloucester City Council,23UE,Guildhall Bar And Caf�,LA210,Catering Provisions -Food,5110,Food,05/02/2016,414019,4.4,NET,Total Produce Gloucester,12645E
Gloucester City Council,23UE,Guildhall Bar And Caf�,LA210,Catering Provisions -Food,5110,Food,05/02/2016,414034,245.38,NET,Woodward Foodservice,10714F
Gloucester City Council,23UE,Guildhall Bar And Caf�,LA210,Catering Provisions -Food,5110,Food,05/02/2016,414035,329.93,NET,Woodward Foodservice,10714F
Gloucester City Council,23UE,Guildhall Bar And Caf�,LA210,Catering Provisions -Food,5110,Milk,05/02/2016,413693,4.6,NET,Total Produce Gloucester,12645E
Gloucester City Council,23UE,Guildhall Bar And Caf�,LA210,Catering Provisions -Food,5110,Milk,05/02/2016,413694,4.6,NET,Total Produce Gloucester,12645E
Gloucester City Council,23UE,Guildhall Bar And Caf�,LA210,Catering Provisions -Food,5110,Milk,05/02/2016,414018,4.4,NET,Total Produce Gloucester,12645E
Gloucester City Council,23UE,Guildhall Bar And Caf�,LA210,Catering Provisions -Food,5110,Milk,05/02/2016,414020,4.4,NET,Total Produce Gloucester,12645E
Gloucester City Council,23UE,Guildhall Bar And Caf�,LA210,Catering Provisions -Food,5110,Milk,05/02/2016,414021,4.4,NET,Total Produce Gloucester,12645E
Gloucester City Council,23UE,Guildhall Bar And Caf�,LA210,Catering Provisions -Food,5110,Milk,05/02/2016,414022,4.4,NET,Total Produce Gloucester,12645E
Gloucester City Council,23UE,Guildhall Bar And Caf�,LA210,Catering Provisions -Food,5110,Milk,05/02/2016,414023,4.4,NET,Total Produce Gloucester,12645E
Gloucester City Council,23UE,Guildhall Bar And Caf�,LA210,Catering Provisions -Food,5110,Milk,05/02/2016,414024,4.4,NET,Total Produce Gloucester,12645E
Gloucester City Council,23UE,Guildhall Bar And Caf�,LA210,Catering Provisions -Food,5110,Milk,05/02/2016,414025,4.4,NET,Total Produce Gloucester,12645E
Gloucester City Council,23UE,Guildhall Bar And Caf�,LA210,Catering Provisions -Food,5110,Milk,05/02/2016,414026,4.4,NET,Total Produce Gloucester,12645E
Gloucester City Council,23UE,Guildhall Bar And Caf�,LA210,Catering Provisions -Food,5110,Milk,05/02/2016,414027,4.4,NET,Total Produce Gloucester,12645E
Gloucester City Council,23UE,Guildhall Bar And Caf�,LA210,Catering Provisions -Food,5110,Milk,05/02/2016,414028,4.4,NET,Total Produce Gloucester,12645E
Gloucester City Council,23UE,Guildhall Bar And Caf�,LA210,Catering Provisions -Food,5110,Milk,05/02/2016,414029,4.4,NET,Total Produce Gloucester,12645E
Gloucester City Council,23UE,Guildhall Bar And Caf�,LA210,Catering Provisions -Food,5110,Milk,05/02/2016,414030,4.4,NET,Total Produce Gloucester,12645E
Gloucester City Council,23UE,Guildhall Bar And Caf�,LA210,Hire Of Equipment,5020,Stock Audit 10/12/15,05/02/2016,414033,90,NET,Fea Audits,08888J
Gloucester City Council,23UE,REDACTED,REDACTED,REDACTED,REDACTED,REDACTED,05/02/2016,REDACTED,1250,NET,REDACTED,REDACTED
Gloucester City Council,23UE,REDACTED,REDACTED,REDACTED,REDACTED,REDACTED,05/02/2016,REDACTED,80,NET,REDACTED,REDACTED
Gloucester City Council,23UE,Guildhall Events,LA200,Printing,5300,Whats on booklets,05/02/2016,413872,1315,NET,Paddock Print,03014H
Gloucester City Council,23UE,Guildhall Events,LA200,Security Services Fees,5351,Door Staff January 2016,05/02/2016,414039,351,NET,Nsgl Ltd (Security Acct),12539E
Gloucester City Council,23UE,Homelessness Prevention,CH122,Basic Pay - Temporary Staff,2751,Temps Hours w/e 24/01/2016,05/02/2016,413871,795.5,NET,Greenacre Recruitment Ltd,15817V
Gloucester City Council,23UE,Housing Works In Default,HD500,Clearance And Cleansing Fees,5384,106 Eastgate Street,05/02/2016,413896,330,NET,Rj Contracting (Environmental) Ltd,07429H
Gloucester City Council,23UE,Innsworth Lane Sports Pitches,LY079,Contract Payments,0020,Maintenance - Innsworth Lane Pitches,05/02/2016,413898,887.1,CAP,Maxwell Amenity Ltd,00960F
Gloucester City Council,23UE,Nms Contract,HI102,Additional Non-Tender Items,6973,Clean up at Morrisons,05/02/2016,413915,100,NET,Enterprise (Aol) Ltd,06695G
Gloucester City Council,23UE,Nms Contract,HI102,Additional Non-Tender Items,6973,Various Items,05/02/2016,413883,16016,NET,Trafalgar Cleaning Equipment,16208U
Gloucester City Council,23UE,Parks Contract Management,LP100,Maint Of Grounds - General,3030,Repair Bench - Duncroft Road,05/02/2016,413914,114,NET,Enterprise (Aol) Ltd,06695G
Gloucester City Council,23UE,Retail Market - Landlord,HM300,Trade Refuse Collection,3630,Food Waste February 2016,05/02/2016,413864,120,NET,B & S Pointon Ltd,06253G
Gloucester City Council,23UE,Robinswoodhill Trading Account,LP203,Maint Of Grounds - General,3030,Nylon Mesh Visor,05/02/2016,413907,27,NET,Severnside Safety Supplies Ltd,57132O
Gloucester City Council,23UE,Tree Planting Grant Funded,LY150,Contract Payments,0020,Tree Tags,05/02/2016,413882,130,CAP,Buxtons Ltd,05590U
Gloucester City Council,23UE,Vehicles,RS140,Routine R And M - Vehicles,4011,Various Items,05/02/2016,413888,62.17,NET,123 Car & Commercial,07651E
Gloucester City Council,23UE,Vehicles,RS140,Routine R And M - Vehicles,4011,Various Items,05/02/2016,413889,112.23,NET,123 Car & Commercial,07651E
Gloucester City Council,23UE,Client Revs & Bens Contract,RT240,Bailiffs Fees,5368,VAT on fees collected,08/02/2016,413886,0,NET,Phoenix Commercial Collections Ltd,13435J
Gloucester City Council,23UE,Client Revs & Bens Contract,RT240,Bailiffs Fees,5368,VAT on fees collected,08/02/2016,413887,0,NET,Phoenix Commercial Collections Ltd,13435J
Gloucester City Council,23UE,Development Management,PT200,Basic Pay - Temporary Staff,2751,Temporary staff w/e 24/01/2016,08/02/2016,413894,1279.6,NET,The Oyster Partnership Limited,14900T
Gloucester City Council,23UE,Development Management,PT200,Microfilming / Cd-Rom Storage,5330,archival storage DECEMBER 2015,08/02/2016,414086,22,NET,Transmedia Technology Ltd,08635T
Gloucester City Council,23UE,Development Management,PT200,Microfilming / Cd-Rom Storage,5330,archival storage JANUARY 2016,08/02/2016,414088,24.98,NET,Transmedia Technology Ltd,08635T
Gloucester City Council,23UE,Gloucester Guildhall,LA100,Fees For Services Received,5350,duty manager,08/02/2016,414090,52.5,NET,Mr Matthew Newman T/A Mjn Security,16223Y
Gloucester City Council,23UE,Gloucester Guildhall,LA100,Fees For Services Received,5350,duty manager,08/02/2016,414093,45.5,NET,Mr Matthew Newman T/A Mjn Security,16223Y
Gloucester City Council,23UE,REDACTED,REDACTED,REDACTED,REDACTED,REDACTED,08/02/2016,REDACTED,489.44,NET,REDACTED,REDACTED
Gloucester City Council,23UE,REDACTED,REDACTED,REDACTED,REDACTED,REDACTED,08/02/2016,REDACTED,530,NET,REDACTED,REDACTED
Gloucester City Council,23UE,Nms Contract,HI102,Additional Non-Tender Items,6973,Puchase of Bins,08/02/2016,413890,2082.35,NET,Enterprise (Aol) Ltd,06695G
Gloucester City Council,23UE,Aspire Admin Charges,LC105,Contracted Services,6970,Monthly Charge February 2016,09/02/2016,413982,54792.25,NET,Aspire Sports & Cultural Trust,08135V
Gloucester City Council,23UE,Asset Management,RS300,Basic Pay - Temporary Staff,2751,Engineer Services December 2015,09/02/2016,413998,5071.95,NET,Ecostep Ltd,15511Z
Gloucester City Council,23UE,Business Transformation & Tech,RT700,Computer Hardware <5000,5420,Various Items,09/02/2016,414014,156.75,NET,Dell Computers Corporation Ltd,55920C
Gloucester City Council,23UE,Business Transformation & Tech,RT700,Computer Software Maintenance,5427,Recovery System - Maintenance Charge,09/02/2016,414003,1694,NET,Ash Information Systems Ltd,54890V
Gloucester City Council,23UE,Business Transformation & Tech,RT700,Fees For Services Received,5350,ICT Strategy Development,09/02/2016,413869,1425,NET,Socitm Service Ltd,52552P
Gloucester City Council,23UE,Business Transformation & Tech,RT700,Fees For Services Received,5350,service charge JAN-DEC2016,09/02/2016,412570,4405.2,NET,G4s Fire & Security Systems (Uk),13090X
Gloucester City Council,23UE,Cemeteries,HC300,Operational Materials,5070,Sweeping January 2016,09/02/2016,413892,192,NET,Enterprise (Aol) Ltd,06695G
Gloucester City Council,23UE,Cemeteries,HC300,Routine R And M - Vehicles,4011,Repairs 28/01/2016,09/02/2016,414002,75,NET,Jay Bee Plant Sales Ltd,11156L
Gloucester City Council,23UE,Cemeteries,HC300,Trade Refuse Tipping Fees,6297,Various Items,09/02/2016,413867,640,NET,Allstone Sand & Gravel Aggregates Ltd,00940M
Gloucester City Council,23UE,Cemeteries,HC300,Trade Refuse Tipping Fees,6297,Weekly Hire of Dumper January 2016,09/02/2016,413983,380,NET,Allstone Sand & Gravel Aggregates Ltd,00940M
Gloucester City Council,23UE,Civica Admin Charges,RT105,Fees For Services Received,5350,Subscription Advance January 16,09/02/2016,413994,4,NET,Companies House,58954E
Gloucester City Council,23UE,Client Revs & Bens Contract,RT240,Bailiffs Fees,5368,VAT due on fees,09/02/2016,414079,0,NET,Bristow & Sutor,05450M
Gloucester City Council,23UE,Client Revs & Bens Contract,RT240,Bailiffs Fees,5368,VAT due on fees,09/02/2016,414080,42.78,NET,Bristow & Sutor,05450M
Gloucester City Council,23UE,Client Revs & Bens Contract,RT240,Fees For Services Received,5350,Arrest & Detention warrant,09/02/2016,414010,60,NET,Assevarate Ltd,11749A
Gloucester City Council,23UE,Contact Centre,RB300,Stationery,5302,Stationary,09/02/2016,414036,88.8,NET,Lyreco Uk Ltd,11746G
Gloucester City Council,23UE,Contact Centre,RB300,Stationery,5302,Stationary,09/02/2016,414037,15.84,NET,Lyreco Uk Ltd,11746G
Gloucester City Council,23UE,Contact Centre,RB300,Stationery,5302,Stationary,09/02/2016,414038,52.5,NET,Lyreco Uk Ltd,11746G
Gloucester City Council,23UE,Countryside Unit,LP201,Clothing,5200,Safety Wellingtons,09/02/2016,413996,29.99,NET,Screwfix Direct,54672H
Gloucester City Council,23UE,Crematorium,HC200,Fees For Services Received,5350,Crem Fees January 2016,09/02/2016,414100,907.52,NET,Dr C M Stretton,00306P
Gloucester City Council,23UE,Crematorium,HC200,Fees For Services Received,5350,Crem Fees January 2016,09/02/2016,414101,568.88,NET,Dr R W Bell,01571P
Gloucester City Council,23UE,Crematorium,HC200,Fees For Services Received,5350,Crem Fees January 2016,09/02/2016,414102,1339.52,NET,Dr D Martin,00890P
Gloucester City Council,23UE,Disabled Facilities Grants,CY013,Disabled Facility Grants,0074,disabled facilities grant - MDF5171,09/02/2016,414099,4235,CAP,Tpg Disableaids,51324R
Gloucester City Council,23UE,Docks Complex - Castlemeads Cp,RB210,Contracted Services,6970,GC Variable Enforcement,09/02/2016,414006,3662.68,NET,Apcoa Parking (Uk) Ltd,09954M
Gloucester City Council,23UE,Economic Development,FP300,Other Minor Supplies Services,5590,Full Band 2 Membership,09/02/2016,413897,625,NET,Atcm,04754X
Gloucester City Council,23UE,Food Safety,HE100,Fees For Services Received,5350,Food Safety Practice Guide,09/02/2016,413893,930.45,NET,Chartered Institute Enviromental Health,50829M
Gloucester City Council,23UE,Guildhall Bar And Caf�,LA210,Catering Provisions -Food,5110,Coffee Beans,09/02/2016,413999,177.15,NET,Ethical Addictions Ltd,11654N
Gloucester City Council,23UE,Guildhall Bar And Caf�,LA210,Catering Provisions -Food,5110,Ice cream,09/02/2016,414000,72,NET,Winstones Ice Cream Ltd,56347D
Gloucester City Council,23UE,Guildhall Bar And Caf�,LA210,Hire Of Equipment,5020,Various Items,09/02/2016,414001,55.79,NET,Nisbets,55372P
Gloucester City Council,23UE,REDACTED,REDACTED,REDACTED,REDACTED,REDACTED,09/02/2016,REDACTED,450,NET,REDACTED,REDACTED
Gloucester City Council,23UE,REDACTED,REDACTED,REDACTED,REDACTED,REDACTED,09/02/2016,REDACTED,600,NET,REDACTED,REDACTED
Gloucester City Council,23UE,REDACTED,REDACTED,REDACTED,REDACTED,REDACTED,09/02/2016,REDACTED,0,NET,REDACTED,REDACTED
Gloucester City Council,23UE,REDACTED,REDACTED,REDACTED,REDACTED,REDACTED,09/02/2016,REDACTED,100,NET,REDACTED,REDACTED
Gloucester City Council,23UE,Guildhall Events,LA200,Fees For Services Received,5350,National Advertising contribution,09/02/2016,413984,150,NET,Adrian Gibson Music Productions Ltd /Agmp,16382A
Gloucester City Council,23UE,Housing Works In Default,HD500,Clearance And Cleansing Fees,5384,15 Slaney Street - Works,09/02/2016,414041,7158,NET,Pinetree (Gloucester) Ltd,53288Y
Gloucester City Council,23UE,Investment Property,RB500,Internal Decs - Communal Areas,3050,Works 22/01/2016,09/02/2016,413912,592,NET,Pickerings Europe Ltd,58816U
Gloucester City Council,23UE,Kings Quarter,RY146,Contract Payments,0020,Bus Station Demolition,09/02/2016,413992,600,CAP,Julian Stokes Management Ltd,09046K
Gloucester City Council,23UE,Legal Services,RS200,Contracted Services,6970,One Legal Q3 15/16,09/02/2016,413881,78209.45,NET,Tewkesbury Borough Council,43800C
Gloucester City Council,23UE,REDACTED,REDACTED,REDACTED,REDACTED,REDACTED,09/02/2016,REDACTED,21,NET,REDACTED,REDACTED
Gloucester City Council,23UE,Off Street Car Parks,PP110,Contracted Services,6970,GC Fixed Overhead,09/02/2016,414005,773.48,NET,Apcoa Parking (Uk) Ltd,09954M
Gloucester City Council,23UE,Off Street Car Parks,PP110,Contracted Services,6970,GC Other Items,09/02/2016,414009,11146.27,NET,Apcoa Parking (Uk) Ltd,09954M
Gloucester City Council,23UE,Off Street Car Parks,PP110,Contracted Services,6970,GC P&D & Head Cams,09/02/2016,414008,2094.59,NET,Apcoa Parking (Uk) Ltd,09954M
Gloucester City Council,23UE,Off Street Car Parks,PP110,Contracted Services,6970,GC Variable Enforcement,09/02/2016,414006,657.04,NET,Apcoa Parking (Uk) Ltd,09954M
Gloucester City Council,23UE,Off Street Car Parks,PP110,Contracted Services,6970,GC Vehicles,09/02/2016,414007,454.26,NET,Apcoa Parking (Uk) Ltd,09954M
Gloucester City Council,23UE,Planning Policy,PT300,Basic Pay - Temporary Staff,2751,Temporary staff w/e 24/01/2016,09/02/2016,413895,2342.07,NET,The Oyster Partnership Limited,14900T
Gloucester City Council,23UE,Publications,RC450,Fees For Services Received,5350,OCT-DEC15 COMMUNICATIONS SUPPORT,09/02/2016,414096,20000,NET,Gloucestershire County Council,18650D
Gloucester City Council,23UE,Retail Market - Landlord,HM300,Operational Equipment <5000,5012,Rental February 2016,09/02/2016,414089,280.56,NET,System Rental Uk Ltd,03239E
Gloucester City Council,23UE,Shopmobility,PE200,Fees For Services Received,5350,Shopmobility membership FEB-APR16,09/02/2016,413956,91.25,NET,Gloucester City Safe,14709J
Gloucester City Council,23UE,Solace Project,FP843,Other Minor Supplies Services,5590,ASB Salary,09/02/2016,413877,3250,NET,Gloucester City Homes,05244T
Gloucester City Council,23UE,Solace Project,FP843,Other Minor Supplies Services,5590,ASB Salary December 2015,09/02/2016,413879,3250,NET,Gloucester City Homes,05244T
Gloucester City Council,23UE,Solace Project,FP843,Other Minor Supplies Services,5590,ASB Salary January 2016,09/02/2016,413880,3250,NET,Gloucester City Homes,05244T
Gloucester City Council,23UE,Solace Project,FP843,Other Minor Supplies Services,5590,ASB Salary October 2015,09/02/2016,413876,3250,NET,Gloucester City Homes,05244T
Gloucester City Council,23UE,Statutory Testing,RS310,Asbestos,3022,Repairs 25/01/2016,09/02/2016,413918,375,NET,Rex Bishop & Son Ltd,59058K
Gloucester City Council,23UE,Theatre Tokens,LT106,Materials For Sale,5080,Tickets January 2016,09/02/2016,414017,80,NET,Society Of London Theatre,05656Z
Gloucester City Council,23UE,Theatre Tokens,LT106,Sale Of Goods And Services,9230,Tickets January 2016,09/02/2016,414017,-4,NET,Society Of London Theatre,05656Z
Gloucester City Council,23UE,Tree Planting Grant Funded,LY150,Contract Payments,0020,Trousers,09/02/2016,413993,116,CAP,Buxtons Ltd,05590U
Gloucester City Council,23UE,Vehicles,RS140,Fuel,4012,Fuel,09/02/2016,414091,65.05,NET,Allstar Business Solutions Ltd (Arval),06594A
Gloucester City Council,23UE,Cemeteries,HC300,Water Supply,3400,Chainsaw,10/02/2016,413861,340.62,NET,Spaldings,48759Y
Gloucester City Council,23UE,Christmas Lights,GY006,Contract Payments,0020,Spherical LED bulbs - Christmas Lights,10/02/2016,413386,345,CAP,Blachere Illuminations Uk Ltd,15818T
Gloucester City Council,23UE,Civica Contract Revs & Bens,RT250,Contracted Services,6970,Revenues & Benefits Services March 2016,10/02/2016,413852,137322.65,NET,Civica Uk Ltd,10841X
Gloucester City Council,23UE,Client Revs & Bens Contract,RT240,Fees For Services Received,5350,Universal Credit Jan 16,10/02/2016,414004,2401.4,NET,Civica Uk Ltd,10841X
Gloucester City Council,23UE,Contact Centre,RB300,Uniforms,5201,Clothing,10/02/2016,414087,456.43,NET,Meltemi Company Clothing Limited,54572N
Gloucester City Council,23UE,Contaminated Land,HE301,Fees For Services Received,5350,Contaminated Land Work December 15,10/02/2016,413991,1309.84,NET,Bromsgrove District Council,15037G
Gloucester City Council,23UE,Crematorium,HC200,Book Of Memory,5055,Site Visit 21/01/2016,10/02/2016,413870,88.26,NET,Hilton Cabinet Co Ltd,21910A
Gloucester City Council,23UE,Development Management,PT200,Basic Pay - Temporary Staff,2751,temp staff w/e 31/1/16,10/02/2016,414094,1244.95,NET,The Oyster Partnership Limited,14900T
Gloucester City Council,23UE,Development Management,PT200,Vocational Training,2970,Member Places,10/02/2016,413847,939.25,NET,Rtpi South West Branch,51344J
Gloucester City Council,23UE,Docks Complex - Services,RB100,Cleaning Materials,3600,Various Items,10/02/2016,413990,174.39,NET,Acs Business Supplies Ltd,15791M
Gloucester City Council,23UE,Financial Services,RT200,Training Course Fees,5367,AAT Exam - 17/02/2016,10/02/2016,414157,75,NET,Pitman Training Worcester,16384W
Gloucester City Council,23UE,Financial Services,RT200,Vocational Training,2970,AAT Exam 27/02/16,10/02/2016,414158,77,NET,Pitman Training Worcester,16384W
Gloucester City Council,23UE,Gloucester Guildhall,LA100,Maintenance Of Equipment,5030,Call Out - Guildhall,10/02/2016,413988,280,NET,Pro Door Ltd,04760C
Gloucester City Council,23UE,Guildhall Bar And Caf�,LA210,Catering Provisions -Food,5110,Milk,10/02/2016,414031,4.4,NET,Total Produce Gloucester,12645E
Gloucester City Council,23UE,Guildhall Bar And Caf�,LA210,Catering Provisions -Food,5110,Milk,10/02/2016,414032,4.4,NET,Total Produce Gloucester,12645E
Gloucester City Council,23UE,Hackney Carriages,HL100,Fees For Services Received,5350,January 2016,10/02/2016,414013,396,NET,Disclosure And Barring Service,00119W
Gloucester City Council,23UE,REDACTED,REDACTED,REDACTED,REDACTED,REDACTED,10/02/2016,REDACTED,489.44,NET,REDACTED,REDACTED
Gloucester City Council,23UE,REDACTED,REDACTED,REDACTED,REDACTED,REDACTED,10/02/2016,REDACTED,368.2,NET,REDACTED,REDACTED
Gloucester City Council,23UE,REDACTED,REDACTED,REDACTED,REDACTED,REDACTED,10/02/2016,REDACTED,560,NET,REDACTED,REDACTED
Gloucester City Council,23UE,REDACTED,REDACTED,REDACTED,REDACTED,REDACTED,10/02/2016,REDACTED,400,NET,REDACTED,REDACTED
Gloucester City Council,23UE,Investment Property,RB500,Repair/Maint Of Fixed Plant,3006,PPM Maintenance 29/01/16,10/02/2016,414043,676.5,NET,Airvent Systems Limited,51073T
Gloucester City Council,23UE,Pollution Control,HE300,Fees For Services Received,5350,collect & dispose of Vauxhall Corsa,10/02/2016,413955,150,NET,Harry Buckland,16135W
Gloucester City Council,23UE,Pollution Control,HE300,Fees For Services Received,5350,dispose of burnt out moped,10/02/2016,413954,45,NET,Harry Buckland,16135W
Gloucester City Council,23UE,Retail Market - Landlord,HM300,Cleaning Materials,3600,Various Items,10/02/2016,413990,295.48,NET,Acs Business Supplies Ltd,15791M
Gloucester City Council,23UE,The Arbor,HC501,Maint Agreements - Buildings,3010,Monthly Machine Warranty,10/02/2016,413692,61.58,NET,Caffeica Ltd,11923J
Gloucester City Council,23UE,Tourism Marketing,LT100,Cleaning Materials,3600,Various Items,10/02/2016,413990,16.99,NET,Acs Business Supplies Ltd,15791M
Gloucester City Council,23UE,Blackfriars,LA609,Contract Cleaning,3620,Cover Cleaning 28/01/2016,11/02/2016,413874,325,NET,Into Cleaning,14609P
Gloucester City Council,23UE,Business Transformation & Tech,RT700,Fees For Services Received,5350,ICT Strategy Development 29/01/16,11/02/2016,414011,4200,NET,Socitm Service Ltd,52552P
Gloucester City Council,23UE,Cemeteries,HC300,Trade Refuse Tipping Fees,6297,Weekly Hire of Dumper 01/11 - 31/12 15,11/02/2016,414085,855,NET,Allstone Sand & Gravel Aggregates Ltd,00940M
Gloucester City Council,23UE,Disabled Facilities Grants,CY013,Disabled Facility Grants,0074,disabled facilities grant - MDF5148,11/02/2016,414251,3983.79,CAP,Mears Home Improvement Ltd,00096G
Gloucester City Council,23UE,Gl1 Pool Air Handling System,LY152,Contract Payments,0020,GL1 pool ventilation,11/02/2016,412900,2194.32,CAP,Esg Pool Ventilation Ltd,14715P
Gloucester City Council,23UE,Homelessness,CH120,Rent In Advance,5516,RIA & Deposit,11/02/2016,414252,395.04,NET,Cgt Lettings,05899H
Gloucester City Council,23UE,Homelessness Prevention,CH122,Fees For Services Received,5350,RIA & Deposit,11/02/2016,414252,530,NET,Cgt Lettings,05899H
Gloucester City Council,23UE,Marketing Gloucester Charges,RC433,Events,5952,Event Programme 15/16,11/02/2016,414179,10000,NET,Marketing Gloucester Ltd,08925E
Gloucester City Council,23UE,Registration Of Electors,RS400,Printing,5300,January IER Mailings,11/02/2016,413997,234.2,NET,Alpha Response Print & Mail Ltd,03029U
Gloucester City Council,23UE,Cemeteries,HC300,Maint Of Grounds - General,3030,30 metres,12/02/2016,414242,75,NET,Aran Turf,56656L
Gloucester City Council,23UE,Contact Centre,RB300,Printing,5300,Phone Book Advertising,12/02/2016,414289,1012,NET,Bt Directories,10473E
Gloucester City Council,23UE,Crematorium,HC200,Repair/Maint Of Fixed Plant,3006,Collection of Waste,12/02/2016,414304,1358.43,NET,Facultatieve Technologies Ltd,51210H
Gloucester City Council,23UE,Docks Complex - Catering Servs,RB110,Basic Pay - Duty Assistants,1511,Food,12/02/2016,414243,102.86,NET,Total Produce Gloucester,12645E
Gloucester City Council,23UE,Docks Complex - Catering Servs,RB110,Basic Pay - Duty Assistants,1511,Food,12/02/2016,414244,24.61,NET,Total Produce Gloucester,12645E
Gloucester City Council,23UE,Docks Complex - Catering Servs,RB110,Basic Pay - Duty Assistants,1511,Food,12/02/2016,414245,8.64,NET,Total Produce Gloucester,12645E
Gloucester City Council,23UE,Docks Complex - Catering Servs,RB110,Basic Pay - Duty Assistants,1511,Food,12/02/2016,414246,27.52,NET,Total Produce Gloucester,12645E
Gloucester City Council,23UE,Docks Complex - Catering Servs,RB110,Basic Pay - Duty Assistants,1511,Food,12/02/2016,414247,38.2,NET,Total Produce Gloucester,12645E
Gloucester City Council,23UE,Docks Complex - Catering Servs,RB110,Basic Pay - Duty Assistants,1511,Food,12/02/2016,414248,8.64,NET,Total Produce Gloucester,12645E
Gloucester City Council,23UE,Docks Complex - Catering Servs,RB110,Basic Pay - Duty Assistants,1511,Food,12/02/2016,414249,44.51,NET,Total Produce Gloucester,12645E
Gloucester City Council,23UE,Docks Complex - Catering Servs,RB110,Basic Pay - Duty Assistants,1511,Food,12/02/2016,414250,16.68,NET,Total Produce Gloucester,12645E
Gloucester City Council,23UE,Docks Complex - Catering Servs,RB110,Basic Pay - Duty Assistants,1511,Food,12/02/2016,414253,39.79,NET,Total Produce Gloucester,12645E
Gloucester City Council,23UE,Docks Complex - Catering Servs,RB110,Basic Pay - Duty Assistants,1511,Food,12/02/2016,414254,73.84,NET,Total Produce Gloucester,12645E
Gloucester City Council,23UE,Docks Complex - Catering Servs,RB110,Basic Pay - Duty Assistants,1511,Food,12/02/2016,414255,8.64,NET,Total Produce Gloucester,12645E
Gloucester City Council,23UE,Docks Complex - Catering Servs,RB110,Basic Pay - Duty Assistants,1511,Food,12/02/2016,414256,19.84,NET,Total Produce Gloucester,12645E
Gloucester City Council,23UE,Docks Complex - Catering Servs,RB110,Basic Pay - Duty Assistants,1511,Food,12/02/2016,414257,49.71,NET,Total Produce Gloucester,12645E
Gloucester City Council,23UE,Docks Complex - Catering Servs,RB110,Basic Pay - Duty Assistants,1511,Food,12/02/2016,414258,46.38,NET,Total Produce Gloucester,12645E
Gloucester City Council,23UE,Docks Complex - Catering Servs,RB110,Basic Pay - Duty Assistants,1511,Food,12/02/2016,414259,16.22,NET,Total Produce Gloucester,12645E
Gloucester City Council,23UE,Docks Complex - Catering Servs,RB110,Basic Pay - Duty Assistants,1511,Food,12/02/2016,414260,16.68,NET,Total Produce Gloucester,12645E
Gloucester City Council,23UE,Docks Complex - Catering Servs,RB110,Basic Pay - Duty Assistants,1511,Food,12/02/2016,414261,37.59,NET,Total Produce Gloucester,12645E
Gloucester City Council,23UE,Docks Complex - Catering Servs,RB110,Basic Pay - Duty Assistants,1511,Food,12/02/2016,414262,97.54,NET,Total Produce Gloucester,12645E
Gloucester City Council,23UE,Docks Complex - Catering Servs,RB110,Catering Provisions -Food,5110,Food,12/02/2016,414263,9.7,NET,Janes Pantry,24500W
Gloucester City Council,23UE,Docks Complex - Catering Servs,RB110,Catering Provisions -Food,5110,Food,12/02/2016,414264,7.52,NET,Janes Pantry,24500W
Gloucester City Council,23UE,Docks Complex - Catering Servs,RB110,Catering Provisions -Food,5110,Food,12/02/2016,414265,10.49,NET,Janes Pantry,24500W
Gloucester City Council,23UE,Docks Complex - Catering Servs,RB110,Catering Provisions -Food,5110,Food,12/02/2016,414266,6.05,NET,Janes Pantry,24500W
Gloucester City Council,23UE,Docks Complex - Catering Servs,RB110,Catering Provisions -Food,5110,Food,12/02/2016,414267,9.73,NET,Janes Pantry,24500W
Gloucester City Council,23UE,Docks Complex - Catering Servs,RB110,Catering Provisions -Food,5110,Food,12/02/2016,414268,13.63,NET,Janes Pantry,24500W
Gloucester City Council,23UE,Docks Complex - Catering Servs,RB110,Catering Provisions -Food,5110,Food,12/02/2016,414269,14.66,NET,Janes Pantry,24500W
Gloucester City Council,23UE,Docks Complex - Catering Servs,RB110,Catering Provisions -Food,5110,Food,12/02/2016,414270,14.15,NET,Janes Pantry,24500W
Gloucester City Council,23UE,Docks Complex - Catering Servs,RB110,Catering Provisions -Food,5110,Food,12/02/2016,414271,8.27,NET,Janes Pantry,24500W
Gloucester City Council,23UE,Docks Complex - Catering Servs,RB110,Catering Provisions -Food,5110,Food,12/02/2016,414272,12.92,NET,Janes Pantry,24500W
Gloucester City Council,23UE,Docks Complex - Catering Servs,RB110,Catering Provisions -Food,5110,Food,12/02/2016,414273,14.63,NET,Janes Pantry,24500W
Gloucester City Council,23UE,Docks Complex - Catering Servs,RB110,Catering Provisions -Food,5110,Food,12/02/2016,414274,14.66,NET,Janes Pantry,24500W
Gloucester City Council,23UE,Docks Complex - Catering Servs,RB110,Catering Provisions -Food,5110,Food,12/02/2016,414275,9.74,NET,Janes Pantry,24500W
Gloucester City Council,23UE,Docks Complex - Catering Servs,RB110,Catering Provisions -Food,5110,Food,12/02/2016,414276,13.42,NET,Janes Pantry,24500W
Gloucester City Council,23UE,Docks Complex - Catering Servs,RB110,Catering Provisions -Food,5110,Food,12/02/2016,414277,14.66,NET,Janes Pantry,24500W
Gloucester City Council,23UE,Docks Complex - Catering Servs,RB110,Catering Provisions -Food,5110,Food,12/02/2016,414278,4.08,NET,Janes Pantry,24500W
Gloucester City Council,23UE,Docks Complex - Catering Servs,RB110,Catering Provisions -Food,5110,Food,12/02/2016,414279,11.19,NET,Janes Pantry,24500W
Gloucester City Council,23UE,Docks Complex - Catering Servs,RB110,Catering Provisions -Food,5110,Food,12/02/2016,414280,14.66,NET,Janes Pantry,24500W
Gloucester City Council,23UE,Docks Complex - Catering Servs,RB110,Catering Provisions -Food,5110,Food,12/02/2016,414281,18.88,NET,Janes Pantry,24500W
Gloucester City Council,23UE,Docks Complex - Catering Servs,RB110,Catering Provisions -Food,5110,Food,12/02/2016,414282,6.05,NET,Janes Pantry,24500W
Gloucester City Council,23UE,Docks Complex - Catering Servs,RB110,Catering Provisions -Food,5110,Food,12/02/2016,414283,16.36,NET,Janes Pantry,24500W
Gloucester City Council,23UE,Docks Complex - Catering Servs,RB110,Catering Provisions -Food,5110,Food,12/02/2016,414284,195.71,NET,Bidvest Foodservice (3663),55585U
Gloucester City Council,23UE,Docks Complex - Catering Servs,RB110,Catering Provisions -Food,5110,Food,12/02/2016,414285,208.25,NET,Bidvest Foodservice (3663),55585U
Gloucester City Council,23UE,Docks Complex - Catering Servs,RB110,Catering Provisions -Food,5110,Food,12/02/2016,414308,176.4,NET,Bidvest Foodservice (3663),55585U
Gloucester City Council,23UE,Docks Complex - Services,RB100,Operational Equipment <5000,5012,Various Items,12/02/2016,414286,72,NET,Plugtest Ltd,11563T
Gloucester City Council,23UE,Docks Complex - Services,RB100,Recycling,3631,JANUARY 2016 RECYCLING,12/02/2016,413952,223.4,NET,Printwaste Recycling,57114W
Gloucester City Council,23UE,Docks Complex - Services,RB100,Recycling,3631,Recycling January 16,12/02/2016,413987,55.8,NET,Printwaste Recycling,57114W
Gloucester City Council,23UE,Docks Complex - Services,RB100,Uniforms,5201,Shoes,12/02/2016,413985,65,NET,Safpro Industrial Supply Co,39190W
Gloucester City Council,23UE,Gloucester Guildhall,LA100,Maintenance Of Equipment,5030,GCC/GG/10022016 CIS Adjustment,12/02/2016,414344,2118,NET,Williams Flooring (Nationwide) Ltd,16235R
Gloucester City Council,23UE,Green Garden Waste,HI105,Basic Pay - Temporary Staff,2751,Temporary staff w/e 05/02/16,12/02/2016,414298,573.5,NET,One To One Recruitment,04752H
Gloucester City Council,23UE,Green Garden Waste,HI105,Basic Pay - Temporary Staff,2751,Temporary staff w/e 29/01/2016,12/02/2016,414291,573.5,NET,One To One Recruitment,04752H
Gloucester City Council,23UE,Guildhall Bar And Caf�,LA210,Catering Provisions -Liquor,5111,Drinks,12/02/2016,414290,2682.42,NET,Cellar Supplies Cheltenham Ltd,01563L
Gloucester City Council,23UE,Homelessness,CH120,Rent In Advance,5516,RIA & Deposit,12/02/2016,414320,489.44,NET,Selina'S Lettings,13035F
Gloucester City Council,23UE,Homelessness Prevention,CH122,Fees For Services Received,5350,RIA & Deposit,12/02/2016,414320,530,NET,Selina'S Lettings,13035F
Gloucester City Council,23UE,Kings Quarter,RY146,Contract Payments,0020,Hoarding License Application 1188500,12/02/2016,414343,240,CAP,Gloucestershire County Council,18650D
Gloucester City Council,23UE,Nms Contract,HI102,Contracted Services,6970,240L WHEELIE BIN LINERS,12/02/2016,414097,1096,NET,Papersacks Ltd T/As Svenco Uk,13479M
Gloucester City Council,23UE,REDACTED,REDACTED,REDACTED,REDACTED,REDACTED,12/02/2016,REDACTED,105,NET,REDACTED,REDACTED
Gloucester City Council,23UE,Tree Planting Grant Funded,LY150,Contract Payments,0020,Trees,12/02/2016,414295,179.8,CAP,Mount Pleasant Trees,51352K
Gloucester City Council,23UE,Economic Development,FP300,Business Grant,7116,Business Rent Grant,15/02/2016,413904,500,NET,The Paint Pot Gloucester,16245M
Gloucester City Council,23UE,Homelessness,CH120,Rents,3200,Management Fee Oct - Dec 2015,15/02/2016,413878,46250,NET,Gloucester City Homes,05244T
Gloucester City Council,23UE,Civica Admin Charges,RT105,Postages,5400,Post 18/01 - 29/01 2016,16/02/2016,414288,1221.21,NET,Royal Mail S.Wales & South West,35830S
Gloucester City Council,23UE,Homelessness,CH120,Fees For Services Received,5350,Medical Advice January 2016,16/02/2016,414196,25,NET,Now Medical,03468L
Gloucester City Council,23UE,REDACTED,REDACTED,REDACTED,REDACTED,REDACTED,16/02/2016,REDACTED,378.48,NET,REDACTED,REDACTED
Gloucester City Council,23UE,REDACTED,REDACTED,REDACTED,REDACTED,REDACTED,16/02/2016,REDACTED,21,NET,REDACTED,REDACTED
Gloucester City Council,23UE,Licences,HE510,Vocational Training,2970,training course 11/05/16,16/02/2016,414188,150,NET,The Institute Of Licensing (Events) Ltd,10855K
Gloucester City Council,23UE,REDACTED,REDACTED,REDACTED,REDACTED,REDACTED,16/02/2016,REDACTED,1200,NET,REDACTED,REDACTED
Gloucester City Council,23UE,Rehousing,CH111,Fees For Services Received,5350,Medical Advice January 2016,16/02/2016,414196,135,NET,Now Medical,03468L
Gloucester City Council,23UE,Asset Management,RS300,Basic Pay - Temporary Staff,2751,Consultancy Services January 16,17/02/2016,414206,6375,NET,Ardley Associates,09369F
Gloucester City Council,23UE,Cemeteries,HC300,Routine R And M - Vehicles,4011,Digger,17/02/2016,414226,45,NET,Garden Machinery Gloucester,55641K
Gloucester City Council,23UE,Cemeteries,HC300,Routine R And M - Vehicles,4011,Repairs,17/02/2016,414225,65,NET,Garden Machinery Gloucester,55641K
Gloucester City Council,23UE,Christmas Lights,GY006,Contract Payments,0020,Various Items,17/02/2016,411052,49660.46,CAP,Blachere Illuminations Uk Ltd,15818T
Gloucester City Council,23UE,Christmas Lights,GY006,Contract Payments,0020,Various Items,17/02/2016,414363,345,CAP,Blachere Illuminations Uk Ltd,15818T
Gloucester City Council,23UE,Christmas Lights,GY006,Contract Payments,0020,Various Items,17/02/2016,414364,5517.83,CAP,Blachere Illuminations Uk Ltd,15818T
Gloucester City Council,23UE,Council Streetcare Team,HI101,Security Services Fees,5351,Static Security,17/02/2016,414205,160,NET,Glevum Security Ltd,03249B
Gloucester City Council,23UE,Crematorium,HC200,Memorial Plaques,5053,Grave Markers,17/02/2016,414180,912,NET,Arkell & Hurcombe,59812T
Gloucester City Council,23UE,Crematorium,HC200,Memorial Plaques,5053,Plaques,17/02/2016,414217,465,NET,Arkell & Hurcombe,59812T
Gloucester City Council,23UE,Crematorium,HC200,Memorial Plaques,5053,Plaques,17/02/2016,414218,300,NET,Arkell & Hurcombe,59812T
Gloucester City Council,23UE,Crematorium Vehicles,HY049,Purchase Of Vehicles >5000,0040,Various Items,17/02/2016,414307,12750,CAP,Ermin Plant Hire & Services Ltd,14150V
Gloucester City Council,23UE,Financial Services,RT200,Fees For Services Received,5350,Punchline 3 Pages Nov/Dec 2015,17/02/2016,413995,1200,NET,Moose Marketing & Pr,03952A
Gloucester City Council,23UE,Financial Services,RT200,Subscriptions,5600,Membership 16/17,17/02/2016,414228,1650,NET,Lavat Consulting Ltd,02836N
Gloucester City Council,23UE,General Works Fund,RY203,Contract Payments,0020,Professional Fees agreed in tender,17/02/2016,413424,24050,CAP,Sweett (Uk) Ltd,14770R
Gloucester City Council,23UE,REDACTED,REDACTED,REDACTED,REDACTED,REDACTED,17/02/2016,REDACTED,116.67,NET,REDACTED,REDACTED
Gloucester City Council,23UE,REDACTED,REDACTED,REDACTED,REDACTED,REDACTED,17/02/2016,REDACTED,455.83,NET,REDACTED,REDACTED
Gloucester City Council,23UE,REDACTED,REDACTED,REDACTED,REDACTED,REDACTED,17/02/2016,REDACTED,100,NET,REDACTED,REDACTED
Gloucester City Council,23UE,REDACTED,REDACTED,REDACTED,REDACTED,REDACTED,17/02/2016,REDACTED,385,NET,REDACTED,REDACTED
Gloucester City Council,23UE,REDACTED,REDACTED,REDACTED,REDACTED,REDACTED,17/02/2016,REDACTED,494.79,NET,REDACTED,REDACTED
Gloucester City Council,23UE,REDACTED,REDACTED,REDACTED,REDACTED,REDACTED,17/02/2016,REDACTED,450,NET,REDACTED,REDACTED
Gloucester City Council,23UE,REDACTED,REDACTED,REDACTED,REDACTED,REDACTED,17/02/2016,REDACTED,130,NET,REDACTED,REDACTED
Gloucester City Council,23UE,Homelessness,CH120,Board And Lodging,5515,housing fees,17/02/2016,414182,35,NET,Connolly And Callaghan Ltd,07565Y
Gloucester City Council,23UE,Homelessness,CH120,Board And Lodging,5515,housing fees,17/02/2016,414181,70,NET,Connolly And Callaghan Ltd,07565Y
Gloucester City Council,23UE,Homelessness,CH120,Board And Lodging,5515,housing fees,17/02/2016,414183,106,NET,Connolly And Callaghan Ltd,07565Y
Gloucester City Council,23UE,REDACTED,REDACTED,REDACTED,REDACTED,REDACTED,17/02/2016,REDACTED,165,NET,REDACTED,REDACTED
Gloucester City Council,23UE,REDACTED,REDACTED,REDACTED,REDACTED,REDACTED,17/02/2016,REDACTED,330,NET,REDACTED,REDACTED
Gloucester City Council,23UE,Homelessness,CH120,Fees For Services Received,5350,Storage January 2016,17/02/2016,414202,39.11,NET,Advanced Removals & Storage Ltd,57142R
Gloucester City Council,23UE,Homelessness,CH120,Removal And Storage Fees,5513,Storage January 16,17/02/2016,414200,555.36,NET,Advanced Removals & Storage Ltd,57142R
Gloucester City Council,23UE,Homelessness,CH120,Removal And Storage Fees,5513,Storage January 2016,17/02/2016,414204,39.11,NET,Advanced Removals & Storage Ltd,57142R
Gloucester City Council,23UE,Homelessness,CH120,Removal And Storage Fees,5513,Storage January 2016,17/02/2016,414201,78.21,NET,Advanced Removals & Storage Ltd,57142R
Gloucester City Council,23UE,Homelessness,CH120,Rent In Advance,5516,RIA & Deposit,17/02/2016,414365,405.56,NET,Surelet,06858N
Gloucester City Council,23UE,Homelessness Prevention,CH122,Basic Pay - Temporary Staff,2751,Temporary staff w/e 31/01/2016,17/02/2016,414231,473,NET,Greenacre Recruitment Ltd,15817V
Gloucester City Council,23UE,Homelessness Prevention,CH122,Fees For Services Received,5350,RIA & Deposit,17/02/2016,414365,575,NET,Surelet,06858N
Gloucester City Council,23UE,Homelessness Prevention,CH122,Fees For Services Received,5350,Medical Form Completion,17/02/2016,414198,20.5,NET,Bartongate Surgery,05680S
Gloucester City Council,23UE,Investment Property,RB500,Lift Maintenance,3051,Works,17/02/2016,413863,20884.27,NET,Pickerings Europe Ltd,58816U
Gloucester City Council,23UE,Kings Quarter,RY146,Contract Payments,0020,Kings Quarter Bus Station,17/02/2016,414187,11646,CAP,Aecom Ltd,12443V
Gloucester City Council,23UE,Kings Quarter,RY146,Contract Payments,0020,Life Cycle Costing Report - Bus Station,17/02/2016,414015,1350,CAP,Sweett (Uk) Ltd,14770R
Gloucester City Council,23UE,Legal Services,RS200,Contracted Services,6970,One Legal Costs Incurred,17/02/2016,414208,7773,NET,Tewkesbury Borough Council,43800C
Gloucester City Council,23UE,Rehousing,CH111,Fees For Services Received,5350,Medical Report,17/02/2016,414199,20.5,NET,Gloucester City Health Centre,02093U
Gloucester City Council,23UE,Rehousing,CH111,Fees For Services Received,5350,Medical Report,17/02/2016,414203,60,NET,Quedgeley Medical Centre,04984B
Gloucester City Council,23UE,Retail Market - Landlord,HM300,Trade Refuse Collection,3630,Skip Charge 2015,17/02/2016,414305,6534,NET,Barnwood Shopfitting Ltd,02590Y
Gloucester City Council,23UE,Rugby World Cup,LT450,Fees For Services Received,5350,Tokens RWC 2015,17/02/2016,414241,1038.33,NET,Ngn Group Ltd,16383Y
Gloucester City Council,23UE,Shopmobility,PE200,Cleaning Materials,3600,Medical Waste,17/02/2016,413873,12.14,NET,Ocs Group Uk Limited T/A Cannon,06506A
Gloucester City Council,23UE,Swrda Property Tfr,RB503,Fees For Services Received,5350,Nov/Dec 2015 Issue,17/02/2016,414210,1200,NET,Moose Marketing & Pr,03952A
Gloucester City Council,23UE,Tree Planting Grant Funded,LY150,Contract Payments,0020,Tree Inspection Course,17/02/2016,414216,344,CAP,Land Skills Training And Assessments Ltd,16250V
Gloucester City Council,23UE,Council Streetcare Team,HI101,Window Cleaning,3610,Clean external glazing,18/02/2016,414211,120,NET,Poles Apart Window Cleaning,11636R
Gloucester City Council,23UE,Council Streetcare Team,HI101,Window Cleaning,3610,Clean external glazing,18/02/2016,414212,120,NET,Poles Apart Window Cleaning,11636R
Gloucester City Council,23UE,Flex Replacement,LY160,Contract Payments,0020,Contribution,18/02/2016,414209,6250,CAP,Gloucestershire Wildlife Trust,15576A
Gloucester City Council,23UE,Gloucester Guildhall,LA100,Licences,5703,Fees for Licence,18/02/2016,411678,438.21,NET,Ppl,49860Z
Gloucester City Council,23UE,Grants To Voluntary Sector,FG100,Members Allocation Fund,7100F,Funding,18/02/2016,414221,280,NET,St Paul And St Stephen S Church,16211P
Gloucester City Council,23UE,Homelessness,CH120,Rent In Advance,5516,RIA & Deposit,18/02/2016,414404,489.44,NET,Barton & Tredworth Developments Ltd,58165T
Gloucester City Council,23UE,Homelessness Prevention,CH122,Fees For Services Received,5350,RIA & Deposit,18/02/2016,414404,530,NET,Barton & Tredworth Developments Ltd,58165T
Gloucester City Council,23UE,Statutory Testing,RS310,Emergency Lighting,3055,Engineer 02/12/2015,18/02/2016,412968,305.23,NET,Adt Fire & Security Plc,54086D
Gloucester City Council,23UE,Cemeteries,HC300,Basic Pay - Temporary Staff,2751,temporary staff w/e 31/01/2016,19/02/2016,414189,439.88,NET,Premiere Employment Group Ltd,55468Z
Gloucester City Council,23UE,Cemeteries,HC300,Basic Pay - Temporary Staff,2751,temporary staff w/e 31/01/2016,19/02/2016,414190,439.88,NET,Premiere Employment Group Ltd,55468Z
Gloucester City Council,23UE,Client Revs & Bens Contract,RT240,Bailiffs Fees,5368,VAT on fees collected,19/02/2016,414229,0,NET,Phoenix Commercial Collections Ltd,13435J
Gloucester City Council,23UE,Corporate Reporting /Financing,RC504,Fees For Services Received,5350,Childcare Vouchers February 2016,19/02/2016,414240,42.91,NET,Wider Plan Ltd ( Formerly Kiddivouchers),07893B
Gloucester City Council,23UE,Financial Services,RT200,Fees For Services Received,5350,GREY WHEELED BINS,19/02/2016,414321,4635.79,NET,Enterprise (Aol) Ltd,06695G
Gloucester City Council,23UE,Financial Services,RT200,Fees For Services Received,5350,BLACK WHEELED BINS,19/02/2016,414322,14608.28,NET,Enterprise (Aol) Ltd,06695G
Gloucester City Council,23UE,Folk Museum,LM210,Other Minor Supplies Services,5590,Remaining 50% of invoice,19/02/2016,414040,10535.5,NET,Total Lighting Controls Ltd,02415U
Gloucester City Council,23UE,Inhouse Training,EH200,Vocational Training,2970,RIPA training,19/02/2016,412487,284.76,NET,Cotswold District Council,49331J
Gloucester City Council,23UE,National Express,LT105,Materials For Sale,5080,January 2016,19/02/2016,414301,7965.3,NET,National Express Ltd,31455K
Gloucester City Council,23UE,National Express,LT105,Sale Of Goods And Services,9230,January 2016,19/02/2016,414301,-769.03,NET,National Express Ltd,31455K
Gloucester City Council,23UE,Nms Contract,HI102,Contracted Services,6970,February 2016 Service Fee,19/02/2016,414012,474981.93,NET,Enterprise (Aol) Ltd,06695G
Gloucester City Council,23UE,S106 Hempsted Way Play Area,LY156,Contract Payments,0020,Harness Close- Fencing,19/02/2016,414223,438,CAP,Greenfields Garden Services Ltd,48130G
Gloucester City Council,23UE,Aspire Admin Charges,LC105,Security Services Fees,5351,Services March 2016,22/02/2016,414531,184.94,NET,G4s Cash Solutions (Uk) Ltd,04290V
Gloucester City Council,23UE,Cemeteries,HC300,Maint Of Grounds - General,3030,60 Metres Turf,22/02/2016,414502,150,NET,Aran Turf,56656L
Gloucester City Council,23UE,Cemeteries,HC300,Maint Of Grounds - General,3030,60 Metres Turf,22/02/2016,414503,150,NET,Aran Turf,56656L
Gloucester City Council,23UE,Cemeteries,HC300,Maint Of Grounds - General,3030,60 Metres Turf,22/02/2016,414504,150,NET,Aran Turf,56656L
Gloucester City Council,23UE,Cemeteries,HC300,Major R And M - Vehicles,4010,spares,22/02/2016,414462,531.2,NET,Garden Machinery Gloucester,55641K
Gloucester City Council,23UE,Cems/Crems Admin,HC100,Security Services Fees,5351,Services March 2016,22/02/2016,414531,105.42,NET,G4s Cash Solutions (Uk) Ltd,04290V
Gloucester City Council,23UE,City Museum And Art Gallery,LM200,Security Services Fees,5351,Services March 2016,22/02/2016,414531,92.47,NET,G4s Cash Solutions (Uk) Ltd,04290V
Gloucester City Council,23UE,City Museum Catering,LM202,Catering Provisions -Food,5110,MILK,22/02/2016,414506,4.4,NET,Total Produce Gloucester,12645E
Gloucester City Council,23UE,City Museum Catering,LM202,Catering Provisions -Food,5110,MILK,22/02/2016,414507,4.4,NET,Total Produce Gloucester,12645E
Gloucester City Council,23UE,City Museum Catering,LM202,Catering Provisions -Food,5110,MILK,22/02/2016,414508,6.6,NET,Total Produce Gloucester,12645E
Gloucester City Council,23UE,City Museum Catering,LM202,Catering Provisions -Food,5110,MILK,22/02/2016,414509,4.4,NET,Total Produce Gloucester,12645E
Gloucester City Council,23UE,City Museum Catering,LM202,Catering Provisions -Food,5110,MILK,22/02/2016,414510,4.4,NET,Total Produce Gloucester,12645E
Gloucester City Council,23UE,City Museum Catering,LM202,Catering Provisions -Food,5110,MILK,22/02/2016,414511,6.6,NET,Total Produce Gloucester,12645E
Gloucester City Council,23UE,City Museum Catering,LM202,Catering Provisions -Food,5110,MILK,22/02/2016,414512,4.4,NET,Total Produce Gloucester,12645E
Gloucester City Council,23UE,City Museum Catering,LM202,Catering Provisions -Food,5110,MILK,22/02/2016,414513,4.4,NET,Total Produce Gloucester,12645E
Gloucester City Council,23UE,Civica It Contract,RT270,Contracted Services,6970,JAN16 PENSION EXCESS,22/02/2016,414458,342.25,NET,Civica Uk Ltd,10841X
Gloucester City Council,23UE,Civica It Contract,RT270,Contracted Services,6970,DEC15 PENSION EXCESS,22/02/2016,414457,799.67,NET,Civica Uk Ltd,10841X
Gloucester City Council,23UE,Civica It Contract,RT270,Fees For Services Received,5350,JAN16 PENSION EXCESS,22/02/2016,414458,453.8,NET,Civica Uk Ltd,10841X
Gloucester City Council,23UE,Client Revs & Bens Contract,RT240,Bailiffs Fees,5368,fees paid direct & VAT due,22/02/2016,414455,99.78,NET,Bristow & Sutor,05450M
Gloucester City Council,23UE,Client Revs & Bens Contract,RT240,Bailiffs Fees,5368,vat only invoice,22/02/2016,414463,0,NET,Bristow & Sutor,05450M
Gloucester City Council,23UE,Contact Centre,RB300,Postages,5400,ENVELOPES,22/02/2016,414451,109,NET,Encore Envelopes Ltd,13782H
Gloucester City Council,23UE,Contact Centre,RB300,Postages,5400,ENVELOPES,22/02/2016,414452,301.5,NET,Encore Envelopes Ltd,13782H
Gloucester City Council,23UE,Contact Centre,RB300,Postages,5400,ENVELOPES,22/02/2016,414453,141.66,NET,Encore Envelopes Ltd,13782H
Gloucester City Council,23UE,Contact Centre,RB300,Stationery,5302,STATIONERY,22/02/2016,414498,17.27,NET,Lyreco Uk Ltd,11746G
Gloucester City Council,23UE,Contact Centre,RB300,Stationery,5302,STATIONERY,22/02/2016,414499,5,NET,Lyreco Uk Ltd,11746G
Gloucester City Council,23UE,Crematorium,HC200,Maint Of Grounds - General,3030,brushcutter & blower,22/02/2016,414461,1155.33,NET,Garden Machinery Gloucester,55641K
Gloucester City Council,23UE,Crematorium,HC200,Repair/Maint Of Fixed Plant,3006,ANTI VIRUS SOFTWARE,22/02/2016,414419,125,NET,Revolution Multimedia,07880L
Gloucester City Council,23UE,REDACTED,REDACTED,REDACTED,REDACTED,REDACTED,22/02/2016,REDACTED,172,NET,REDACTED,REDACTED
Gloucester City Council,23UE,Disabled Facilities Grants,CY013,Disabled Facility Grants,0074,disabled facilities grant MDF5137,22/02/2016,414493,25260.81,CAP,Mears Home Improvement Ltd,00096G
Gloucester City Council,23UE,Disabled Facilities Grants,CY013,Disabled Facility Grants,0074,disabled facilities grant MDF5062,22/02/2016,414492,13754.4,CAP,Mears Home Improvement Ltd,00096G
Gloucester City Council,23UE,Docks Complex - Services,RB100,Security Services Fees,5351,Services March 2016,22/02/2016,414531,276.2,NET,G4s Cash Solutions (Uk) Ltd,04290V
Gloucester City Council,23UE,Folk Museum,LM210,Security Services Fees,5351,Services March 2016,22/02/2016,414531,92.47,NET,G4s Cash Solutions (Uk) Ltd,04290V
Gloucester City Council,23UE,Gloucester Guildhall,LA100,Security Services Fees,5351,Services March 2016,22/02/2016,414531,92.47,NET,G4s Cash Solutions (Uk) Ltd,04290V
Gloucester City Council,23UE,Green Transport Policy,PJ130,Conference/Meeting Expenses,5510,ENVIRONMENT & ECOLOGY FORUM PRESENTATION,22/02/2016,414468,30,NET,REDACTED,REDACTED
Gloucester City Council,23UE,Guildhall Bar And Caf�,LA210,Catering Provisions -Food,5110,Food,22/02/2016,414514,89.08,NET,Woodward Foodservice,10714F
Gloucester City Council,23UE,Guildhall Bar And Caf�,LA210,Catering Provisions -Liquor,5111,DRINKS FOR RESALE,22/02/2016,414497,280,NET,Gloucester Brewery,13373F
Gloucester City Council,23UE,REDACTED,REDACTED,REDACTED,REDACTED,REDACTED,22/02/2016,REDACTED,50,NET,REDACTED,REDACTED
Gloucester City Council,23UE,REDACTED,REDACTED,REDACTED,REDACTED,REDACTED,22/02/2016,REDACTED,225,NET,REDACTED,REDACTED
Gloucester City Council,23UE,REDACTED,REDACTED,REDACTED,REDACTED,REDACTED,22/02/2016,REDACTED,150,NET,REDACTED,REDACTED
Gloucester City Council,23UE,REDACTED,REDACTED,REDACTED,REDACTED,REDACTED,22/02/2016,REDACTED,130,NET,REDACTED,REDACTED
Gloucester City Council,23UE,REDACTED,REDACTED,REDACTED,REDACTED,REDACTED,22/02/2016,REDACTED,280,NET,REDACTED,REDACTED
Gloucester City Council,23UE,Homelessness,CH120,Board And Lodging,5515,COLD WEATHER PLACEMENT,22/02/2016,414456,180,NET,Carbrey Housing Ltd,11098G
Gloucester City Council,23UE,Homelessness,CH120,Board And Lodging,5515,DEC15 NOVA HOUSE VOIDS,22/02/2016,414417,1112.48,NET,Gloucester City Homes,05244T
Gloucester City Council,23UE,Homelessness,CH120,Board And Lodging,5515,JAN16 NOVA HOUSE VOIDS,22/02/2016,414418,1177.92,NET,Gloucester City Homes,05244T
Gloucester City Council,23UE,Homelessness,CH120,Fees For Services Received,5350,RIA & DEPOSIT,22/02/2016,414539,279.52,NET,Cgt Lettings Ltd,09004C
Gloucester City Council,23UE,REDACTED,REDACTED,REDACTED,REDACTED,REDACTED,22/02/2016,REDACTED,489.44,NET,REDACTED,REDACTED
Gloucester City Council,23UE,Homelessness Prevention,CH122,Basic Pay - Temporary Staff,2751,TEMPORARY STAFF,22/02/2016,414469,774,NET,Greenacre Recruitment Ltd,15817V
Gloucester City Council,23UE,Homelessness Prevention,CH122,Fees For Services Received,5350,RIA & DEPOSIT,22/02/2016,414539,631.23,NET,Cgt Lettings Ltd,09004C
Gloucester City Council,23UE,REDACTED,REDACTED,REDACTED,REDACTED,REDACTED,22/02/2016,REDACTED,500,NET,REDACTED,REDACTED
Gloucester City Council,23UE,Horsbere Brook Planting Ea,LY147,Contract Payments,0020,Trees,22/02/2016,414526,102.85,CAP,Mount Pleasant Trees,51352K
Gloucester City Council,23UE,Horsbere Brook Planting Ea,LY147,Legal/Survey Fees -Land,0002,Corylus Maxima,22/02/2016,414527,300,CAP,Mount Pleasant Trees,51352K
Gloucester City Council,23UE,Meet & Greet,FP309,Advertising And Publicity,5702,BTTS MARCH 2016,22/02/2016,414495,196,NET,Ges,15517L
Gloucester City Council,23UE,Meet & Greet,FP309,Advertising And Publicity,5702,CAR PARKING 18/7/15,22/02/2016,414411,63,NET,Serlo Enterpises Ltd,01292V
Gloucester City Council,23UE,Meet & Greet,FP309,Advertising And Publicity,5702,HAND HELD SCANNER SERVICE,22/02/2016,414416,175,NET,Show Data Systems Ltd,16394T
Gloucester City Council,23UE,Nms Contract,HI102,Contracted Services,6970,Commodity Top Up January 16,22/02/2016,414042,25856,NET,Enterprise (Aol) Ltd,06695G
Gloucester City Council,23UE,Nms Contract,HI102,Fees For Services Received,5350,grey wheeled bins,22/02/2016,412382,3090.53,NET,Enterprise (Aol) Ltd,06695G
Gloucester City Council,23UE,Nms Contract,HI102,Fees For Services Received,5350,NOV & DEC15 FEES,22/02/2016,414415,2701.46,NET,Somerset County Council,15963G
Gloucester City Council,23UE,REDACTED,REDACTED,REDACTED,REDACTED,REDACTED,22/02/2016,REDACTED,3,NET,REDACTED,REDACTED
Gloucester City Council,23UE,Printing,RP103,Printing,5300,JAN16 PRINTING,22/02/2016,414413,637.79,NET,Alpha Colour Printers Ltd,00945B
Gloucester City Council,23UE,S106 Hempsted Way Play Area,LY156,Contract Payments,0020,HEDGELAYING HEMPSTED REC GROUND,22/02/2016,414470,500,CAP,The Little Tree Company,15543K
Gloucester City Council,23UE,REDACTED,REDACTED,REDACTED,REDACTED,REDACTED,22/02/2016,REDACTED,72,NET,REDACTED,REDACTED
Gloucester City Council,23UE,Tourism Marketing,LT100,Other Minor Supplies Services,5590,intruder alarm monitoring and maintenance,22/02/2016,414496,294.79,NET,Laser Alarms Ltd,26325V
Gloucester City Council,23UE,Tourism Marketing,LT100,Security Services Fees,5351,Services March 2016,22/02/2016,414531,92.47,NET,G4s Cash Solutions (Uk) Ltd,04290V
Gloucester City Council,23UE,Business Transformation & Tech,RT700,Fees For Services Received,5350,ICT STRATEGY & DEVT,23/02/2016,414414,2850,NET,Socitm Service Ltd,52552P
Gloucester City Council,23UE,Cemeteries,HC300,Maint Of Grounds - General,3030,TIMBER,23/02/2016,414538,82.5,NET,Millington & Ramstedt Ltd,29815S
Gloucester City Council,23UE,Cemeteries,HC300,Purch Vehicles/M. Plant <5000,4000,TIMBER,23/02/2016,414538,340.89,NET,Millington & Ramstedt Ltd,29815S
Gloucester City Council,23UE,Council Streetcare Team,HI101,Maint Of Grounds - General,3030,Bird Food,23/02/2016,414505,93.46,NET,Angell Pets Ltd,15773P
Gloucester City Council,23UE,Development Management,PT200,Advertising And Publicity,5702,Advertisement 04/02/2016,23/02/2016,414219,233.73,NET,Local World Ltd,08556P
Gloucester City Council,23UE,Development Management,PT200,Basic Pay - Temporary Staff,2751,TEMP STAFF W/E 7/2/16,23/02/2016,414471,1160,NET,The Oyster Partnership Limited,14900T
Gloucester City Council,23UE,Economic Development,FP300,Business Grant,7116,LEASED LINE INSTALLATION,23/02/2016,414466,3000,NET,Nomis Connections Ltd,15813D
Gloucester City Council,23UE,Grants To Voluntary Sector,FG100,Members Allocation Fund,7100F,Various Items,23/02/2016,414215,455.67,NET,Gillman & Son (Electrical) Ltd,21632RV
Gloucester City Council,23UE,Guildhall Bar And Caf�,LA210,Catering Provisions -Food,5110,Food w/e 07/02/2016,23/02/2016,414194,54.6,NET,Janes Pantry,24500W
Gloucester City Council,23UE,REDACTED,REDACTED,REDACTED,REDACTED,REDACTED,23/02/2016,REDACTED,151.67,NET,REDACTED,REDACTED
Gloucester City Council,23UE,REDACTED,REDACTED,REDACTED,REDACTED,REDACTED,23/02/2016,REDACTED,96.67,NET,REDACTED,REDACTED
Gloucester City Council,23UE,REDACTED,REDACTED,REDACTED,REDACTED,REDACTED,23/02/2016,REDACTED,0,NET,REDACTED,REDACTED
Gloucester City Council,23UE,Housing Works In Default,HD500,Clearance And Cleansing Fees,5384,housing works,23/02/2016,413023,473,NET,Rf Gardiner Limited,12299B
Gloucester City Council,23UE,Human Resources,EH100,Fees For Services Received,5350,Payroll Charges January 2016,23/02/2016,414294,2628.65,NET,Gloucestershire County Council,18650D
Gloucester City Council,23UE,Marchants,LT108,Materials For Sale,5080,SALES OF TICKETS DEC15,23/02/2016,414480,1259,NET,Marchants Coaches Ltd,48151Y
Gloucester City Council,23UE,Nms Contract,HI102,Additional Tender Items,6972,Black Wheeled Bins,23/02/2016,411649,9738.85,NET,Enterprise (Aol) Ltd,06695G
Gloucester City Council,23UE,Retail Market - Landlord,HM300,Operational Equipment <5000,5012,lamps,23/02/2016,414454,40.9,NET,City Electrical Factors,09325C
Gloucester City Council,23UE,Robinswoodhill Trading Account,LP203,Maint Of Grounds - General,3030,hand tools,23/02/2016,414440,91.44,NET,Greenham (Bristol) Ltd,59082N
Gloucester City Council,23UE,The Arbor,HC501,Catering Provisions -Food,5110,Food,23/02/2016,413624,405.58,NET,Bidvest Foodservice (3663),55585U
Gloucester City Council,23UE,Tourism Marketing,LT100,Exhibits And Collections,5038,VISIT ENGLAND AWARDS 2016,23/02/2016,414481,190,NET,The Glasgows Group,03243P
Gloucester City Council,23UE,Tourism Marketing,LT100,Window Cleaning,3610,NOV15 WINDOW CLEANING,23/02/2016,414479,24,NET,Interserve Fs (Uk) Limited,00442K
Gloucester City Council,23UE,Utilities,PT502,Electricity Supply,3110,UTILITIES TO FEB 2016,23/02/2016,414399,40301.01,NET,West Mercia Energy,11669Z
Gloucester City Council,23UE,Utilities,PT502,Gas Supply,3100,UTILITIES TO FEB 2016,23/02/2016,414399,1233.99,NET,West Mercia Energy,11669Z
Gloucester City Council,23UE,23-25 Commercial Road,RB541,Consultants Fees,5349,23-25 COMMERCIAL ROAD FEES,24/02/2016,414644,500,NET,Alder King,02367D
Gloucester City Council,23UE,Business Transformation & Tech,RT700,Computer Hardware <5000,5420,AUTOCAD MAINTENANCE 16/17,24/02/2016,414627,5240,NET,Excitech Ltd,09105V
Gloucester City Council,23UE,Business Transformation & Tech,RT700,Computer Software Maintenance,5427,KIOSK AIM 9 UPGRADES,24/02/2016,414476,1050,NET,Banking Automation Ltd,10352U
Gloucester City Council,23UE,Cemeteries,HC300,Maint Of Grounds - General,3030,"grease, signs, linemarker",24/02/2016,414445,238.6,NET,Spaldings,48759Y
Gloucester City Council,23UE,Cemeteries,HC300,Major R And M - Vehicles,4010,chain oil,24/02/2016,414444,70,NET,Spaldings,48759Y
Gloucester City Council,23UE,Cemeteries,HC300,Major R And M - Vehicles,4010,repairs to Terex TC29,24/02/2016,414653,150,NET,Jay Bee Plant Sales Ltd,11156L
Gloucester City Council,23UE,Cemeteries,HC300,Operational Materials,5070,FINE BARK,24/02/2016,414645,1155,NET,Bhgs Ltd,00247K
Gloucester City Council,23UE,City Centre Cctv System,PY275,Contract Payments,0020,CCTV CAPEX FEES,24/02/2016,414643,487868,CAP,Bt Redcare,04692U
Gloucester City Council,23UE,City Museum And Art Gallery,LM200,Printing,5300,DAYS OUT WEBSITE,24/02/2016,414464,50,NET,Days Out Publishing Ltd,51029W
Gloucester City Council,23UE,Client Revs & Bens Contract,RT240,Bailiffs Fees,5368,VAT ONLY INVOICE,24/02/2016,414621,0,NET,Bristow & Sutor,05450M
Gloucester City Council,23UE,Contact Centre,RB300,Other Minor Supplies Services,5590,Call Usage January 2016,24/02/2016,414081,58.28,NET,Direct Response (Formerly Office Response),09439K
Gloucester City Council,23UE,Contact Centre,RB300,Other Minor Supplies Services,5590,Monthly Facility Fee February 2016,24/02/2016,413701,237.57,NET,Direct Response (Formerly Office Response),09439K
Gloucester City Council,23UE,Contact Centre,RB300,Postages,5400,Post 22/01 - 04/02 2016,24/02/2016,414525,1041.4,NET,Royal Mail S.Wales & South West,35830S
Gloucester City Council,23UE,Development Management,PT200,Advertising And Publicity,5702,FEB16 adverts,24/02/2016,414635,233.73,NET,Local World Ltd,08556P
Gloucester City Council,23UE,REDACTED,REDACTED,REDACTED,REDACTED,REDACTED,24/02/2016,REDACTED,172,NET,REDACTED,REDACTED
Gloucester City Council,23UE,Financial Services,RT200,Fees For Services Received,5350,VAT ONLY INVOICE,24/02/2016,414623,0,NET,Dac Beachcroft Llp,12648Y
Gloucester City Council,23UE,Folk Museum,LM210,Advertising And Publicity,5702,DAYS OUT WEBSITE,24/02/2016,414465,50,NET,Days Out Publishing Ltd,51029W
Gloucester City Council,23UE,Guildhall Bar And Caf�,LA210,Catering Provisions -Food,5110,food,24/02/2016,414652,40,NET,Janes Pantry,24500W
Gloucester City Council,23UE,Guildhall Events,LA200,Advertising And Publicity,5702,adverts JAN16,24/02/2016,414633,180,NET,Local World Ltd,08556P
Gloucester City Council,23UE,REDACTED,REDACTED,REDACTED,REDACTED,REDACTED,24/02/2016,REDACTED,2804.87,NET,REDACTED,REDACTED
Gloucester City Council,23UE,REDACTED,REDACTED,REDACTED,REDACTED,REDACTED,24/02/2016,REDACTED,100,NET,REDACTED,REDACTED
Gloucester City Council,23UE,REDACTED,REDACTED,REDACTED,REDACTED,REDACTED,24/02/2016,REDACTED,350,NET,REDACTED,REDACTED
Gloucester City Council,23UE,REDACTED,REDACTED,REDACTED,REDACTED,REDACTED,24/02/2016,REDACTED,300,NET,REDACTED,REDACTED
Gloucester City Council,23UE,REDACTED,REDACTED,REDACTED,REDACTED,REDACTED,24/02/2016,REDACTED,300,NET,REDACTED,REDACTED
Gloucester City Council,23UE,REDACTED,REDACTED,REDACTED,REDACTED,REDACTED,24/02/2016,REDACTED,37.5,NET,REDACTED,REDACTED
Gloucester City Council,23UE,Homelessness,CH120,Removal And Storage Fees,5513,STORAGE FEES,24/02/2016,414642,524.57,NET,Advanced Removals & Storage Ltd,57142R
Gloucester City Council,23UE,Homelessness,CH120,Rent In Advance,5516,ria & deposit,24/02/2016,414657,489.44,NET,Woodfield Lettings Ltd,11026N
Gloucester City Council,23UE,REDACTED,REDACTED,REDACTED,REDACTED,REDACTED,24/02/2016,REDACTED,368.2,NET,REDACTED,REDACTED
Gloucester City Council,23UE,Homelessness Prevention,CH122,Fees For Services Received,5350,ria & deposit,24/02/2016,414657,530,NET,Woodfield Lettings Ltd,11026N
Gloucester City Council,23UE,REDACTED,REDACTED,REDACTED,REDACTED,REDACTED,24/02/2016,REDACTED,395,NET,REDACTED,REDACTED
Gloucester City Council,23UE,REDACTED,REDACTED,REDACTED,REDACTED,REDACTED,24/02/2016,REDACTED,635,NET,REDACTED,REDACTED
Gloucester City Council,23UE,Organisational Health,RC160,Fees For Services Received,5350,DEC15 OH SERVICES,24/02/2016,414650,62.5,NET,Industrial Medical & Safety Services Ltd,10668L
Gloucester City Council,23UE,Pest Control,HD400,Fees For Services Received,5350,PEST CONTROL,24/02/2016,414648,2620.63,NET,Falconry Services Ltd,10692P
Gloucester City Council,23UE,Retail Market - Landlord,HM300,Buildings Insurance,3800,Insurance 2016,24/02/2016,414515,831.51,NET,Workman Llp,11021M
Gloucester City Council,23UE,Retail Market - Landlord,HM300,Sewerage And Environ Charges,3402,GLOUCESTER MARKET 2 MONTHLY SERVICE,24/02/2016,414647,180,NET,Eezeeflow Drain Services,11587C
Gloucester City Council,23UE,Retail Market - Landlord,HM300,Window Cleaning,3610,FEB16 WINDOW CLEANING,24/02/2016,414628,140,NET,Cornwall Cleaning Services,14050A
Gloucester City Council,23UE,Safer Stronger Communities,FP841,Other Minor Supplies Services,5590,TPAS AWARDS TICKETS,24/02/2016,414649,175,NET,Gloucester City Homes,05244T
Gloucester City Council,23UE,Street Trading Licences,HM520,Advertising And Publicity,5702,11 FEB 16 ADVERTS,24/02/2016,414432,467.46,NET,Local World Ltd,08556P
Gloucester City Council,23UE,Swrda Property Tfr,RB503,Fees For Services Received,5350,Punchline editorial SEP/OCT15,24/02/2016,414636,1200,NET,Moose Marketing & Pr,03952A
Gloucester City Council,23UE,The Arbor,HC501,Catering Provisions -Food,5110,Food w/e 07/02/2016,24/02/2016,414193,206.54,NET,Janes Pantry,24500W
Gloucester City Council,23UE,The Arbor,HC501,Catering Provisions -Food,5110,Food w/e 24/01/2016,24/02/2016,413690,190.12,NET,Janes Pantry,24500W
Gloucester City Council,23UE,The Arbor,HC501,Catering Provisions -Food,5110,Food w/e 31/01/2016,24/02/2016,413840,32.62,NET,Janes Pantry,24500W
Gloucester City Council,23UE,Tourism Marketing,LT100,Other Minor Supplies Services,5590,OCT-DEC15 service,24/02/2016,414654,36.42,NET,Ocs Group Uk Limited T/A Cannon,06506A
Gloucester City Council,23UE,Vehicles,RS140,Fuel,4012,Fuel,24/02/2016,414521,242.39,NET,Allstar Business Solutions Ltd (Arval),06594A
Gloucester City Council,23UE,Blackfriars,LA609,Cleaning Materials,3600,MAR-JUN16 HAND DRYER LEASING,25/02/2016,414655,52.65,NET,Wessex Products (Leasing) Ltd,03684C
Gloucester City Council,23UE,Business Transformation & Tech,RT700,Subscriptions,5600,CHP MAINTENANCE 2016,25/02/2016,414533,15069.29,NET,Cogenco Ltd,06075G
Gloucester City Council,23UE,Crematorium,HC200,Cleaning Materials,3600,SANITARY DISPOSAL SERVICES,25/02/2016,414494,17.28,NET,Minster Cleaning Services,02158R
Gloucester City Council,23UE,Development Management,PT200,Basic Pay - Temporary Staff,2751,TEMP STAFF W/E 14/2/16,25/02/2016,414624,1312.3,NET,The Oyster Partnership Limited,14900T
Gloucester City Council,23UE,Disabled Facilities Grants,CY013,Disabled Facility Grants,0074,DISABLED FACILITIES GRANT MDF 5144 FINAL FEE,25/02/2016,414754,5803.68,CAP,Mears Home Improvement Ltd,00096G
Gloucester City Council,23UE,Folk Museum,LM210,Security Services Fees,5351,Folk Museum call out 6/2/16,25/02/2016,414448,31,NET,Glevum Security Ltd,03249B
Gloucester City Council,23UE,Guildhall Cinema,LA202,Fees For Services Received,5350,Monthly Film Charge,25/02/2016,414224,219.59,NET,Nft Logistics Ltd,13505N
Gloucester City Council,23UE,REDACTED,REDACTED,REDACTED,REDACTED,REDACTED,25/02/2016,REDACTED,375.96,NET,REDACTED,REDACTED
Gloucester City Council,23UE,REDACTED,REDACTED,REDACTED,REDACTED,REDACTED,25/02/2016,REDACTED,237.76,NET,REDACTED,REDACTED
Gloucester City Council,23UE,Investment Property,RB500,Consultants Fees,5349,RE HUCCLECOTE SCOUT GROUP,25/02/2016,414446,500,NET,Alder King,02367D
Gloucester City Council,23UE,Investment Property,RB500,General Repair/Maint Buildings,3000,Chase Lane gates,25/02/2016,414743,5200,NET,Mpl Wrought Iron Llp,03907P
Gloucester City Council,23UE,Managing Director,RE100,Subscriptions,5600,VAT only invoice,25/02/2016,414447,0,NET,District Councils Network,11624Y
Gloucester City Council,23UE,Off Street Car Parks,PP110,Fees For Services Received,5350,SERVICE FOR PARKING EQUIPMENT JAN-MAR16,25/02/2016,414656,526.24,NET,Parkeon Ltd,03238G
Gloucester City Council,23UE,Pollution Control,HE300,Vocational Training,2970,IOA FEES,25/02/2016,414619,1220,NET,University Of Derby,16158H
Gloucester City Council,23UE,Retail Market - Landlord,HM300,Cleaning / Domestic Equipment,5011,TOWEL HIRE MAR16,25/02/2016,414632,19.87,NET,Initial Washroom Solutions,06143R
Gloucester City Council,23UE,The Arbor,HC501,Catering Provisions -Food,5110,Milk,25/02/2016,413698,8.14,NET,Total Produce Gloucester,12645E
Gloucester City Council,23UE,Asset Management,RS300,Basic Pay - Temporary Staff,2751,JAN16 project engineer services,26/02/2016,414820,5737.15,NET,Ecostep Ltd,15511Z
Gloucester City Council,23UE,Cemeteries,HC300,Maint Of Grounds - General,3030,120m turf,26/02/2016,414815,300,NET,Aran Turf,56656L
Gloucester City Council,23UE,Cemeteries,HC300,Maint Of Grounds - General,3030,JAN & FEB16 orders,26/02/2016,414441,201.2,NET,Genus Softworks Ltd,12320N
Gloucester City Council,23UE,Cemeteries,HC300,Maint Of Grounds - General,3030,wheelbarrow inner tube,26/02/2016,414821,14.9,NET,Garden Machinery Gloucester,55641K
Gloucester City Council,23UE,Cemeteries,HC300,"Seeds, Trees, Plants, Shrubs",3028,JAN & FEB16 orders,26/02/2016,414441,57,NET,Genus Softworks Ltd,12320N
Gloucester City Council,23UE,Cems/Crems Admin,HC100,Security Services Fees,5351,cash handling fees,26/02/2016,414207,14.11,NET,G4s Cash Solutions (Uk) Ltd,04290V
Gloucester City Council,23UE,City Centre Cctv System,PY275,Contract Payments,0020,CONEY HILL PDE NEW CONNECTION,26/02/2016,414629,2152.79,CAP,Western Power Distribution,13058T
Gloucester City Council,23UE,City Centre Cctv System,PY275,Contract Payments,0020,HARE LANCE/PITT ST NEW CONNECTION,26/02/2016,414630,4141.86,CAP,Western Power Distribution,13058T
Gloucester City Council,23UE,City Centre Cctv System,PY275,Contract Payments,0020,NEW CONNECTION OUTSIDE ALBION HSE,26/02/2016,414631,4177.35,CAP,Western Power Distribution,13058T
Gloucester City Council,23UE,REDACTED,REDACTED,REDACTED,REDACTED,REDACTED,26/02/2016,REDACTED,245,NET,REDACTED,REDACTED
Gloucester City Council,23UE,Contact Centre,RB300,Stationery,5302,adhesive tape,26/02/2016,414814,7.6,NET,Lyreco Uk Ltd,11746G
Gloucester City Council,23UE,Contact Centre,RB300,Stationery,5302,stationery,26/02/2016,414812,84,NET,Lyreco Uk Ltd,11746G
Gloucester City Council,23UE,Contact Centre,RB300,Stationery,5302,stationery,26/02/2016,414813,51.68,NET,Lyreco Uk Ltd,11746G
Gloucester City Council,23UE,Corporate Reporting /Financing,RC504,Audit Fees,5383,2014/15 audit final fee,26/02/2016,414819,900,NET,Kpmg,06498X
Gloucester City Council,23UE,Crematorium,HC200,Fertilisers,3029,JAN & FEB16 orders,26/02/2016,414441,9.2,NET,Genus Softworks Ltd,12320N
Gloucester City Council,23UE,Crematorium,HC200,Memorial Plaques,5053,wall plaque,26/02/2016,414834,54.75,NET,Treasured Memories Limited,11058H
Gloucester City Council,23UE,Development Management,PT200,Advertising And Publicity,5702,Advertisement 11/02/2016,26/02/2016,414431,175.3,NET,Local World Ltd,08556P
Gloucester City Council,23UE,Docks Complex - Services,RB100,Maint Agreements - Buildings,3010,N Warehouse window cleaning,26/02/2016,413167,225,NET,H & W Facilities Management Limited,09142N
Gloucester City Council,23UE,Docks Complex - Services,RB100,Security Services Fees,5351,cash handling fees,26/02/2016,414207,3.53,NET,G4s Cash Solutions (Uk) Ltd,04290V
Gloucester City Council,23UE,Docks Complex - Services,RB100,Uniforms,5201,sweatshirts,26/02/2016,414443,68.16,NET,Safpro Industrial Supply Co,39190W
Gloucester City Council,23UE,Equalities,EH102,Fees For Services Received,5350,15 yard skips,26/02/2016,413798,200,NET,Ken Pink Plant Hire Ltd,56884V
Gloucester City Council,23UE,REDACTED,REDACTED,REDACTED,REDACTED,REDACTED,26/02/2016,REDACTED,0,NET,REDACTED,REDACTED
Gloucester City Council,23UE,Financial Services,RT200,Publications,5060,Local Authority Accounting COP,26/02/2016,414816,2163.75,NET,Cipfa Business Limited,09260F
Gloucester City Council,23UE,Folk Museum,LM210,Security Services Fees,5351,folk museum call outs 7 & 8 FEB16,26/02/2016,414449,62,NET,Glevum Security Ltd,03249B
Gloucester City Council,23UE,REDACTED,REDACTED,REDACTED,REDACTED,REDACTED,26/02/2016,REDACTED,100,NET,REDACTED,REDACTED
Gloucester City Council,23UE,REDACTED,REDACTED,REDACTED,REDACTED,REDACTED,26/02/2016,REDACTED,257.61,NET,REDACTED,REDACTED
Gloucester City Council,23UE,REDACTED,REDACTED,REDACTED,REDACTED,REDACTED,26/02/2016,REDACTED,282.81,NET,REDACTED,REDACTED
Gloucester City Council,23UE,REDACTED,REDACTED,REDACTED,REDACTED,REDACTED,26/02/2016,REDACTED,331.25,NET,REDACTED,REDACTED
Gloucester City Council,23UE,REDACTED,REDACTED,REDACTED,REDACTED,REDACTED,26/02/2016,REDACTED,295.84,NET,REDACTED,REDACTED
Gloucester City Council,23UE,REDACTED,REDACTED,REDACTED,REDACTED,REDACTED,26/02/2016,REDACTED,142.48,NET,REDACTED,REDACTED
Gloucester City Council,23UE,REDACTED,REDACTED,REDACTED,REDACTED,REDACTED,26/02/2016,REDACTED,1111.25,NET,REDACTED,REDACTED
Gloucester City Council,23UE,REDACTED,REDACTED,REDACTED,REDACTED,REDACTED,26/02/2016,REDACTED,100,NET,REDACTED,REDACTED
Gloucester City Council,23UE,REDACTED,REDACTED,REDACTED,REDACTED,REDACTED,26/02/2016,REDACTED,170,NET,REDACTED,REDACTED
Gloucester City Council,23UE,Human Resources,EH100,Fees For Services Received,5350,Payroll Charges December 2015,26/02/2016,413265,2659.96,NET,Gloucestershire County Council,18650D
Gloucester City Council,23UE,Nms Contract,HI102,Contracted Services,6970,2014/16 top up recyclate payment toNOV15,26/02/2016,414425,28632,NET,Enterprise (Aol) Ltd,06695G
Gloucester City Council,23UE,Off Street Car Parks,PP110,General Repair/Maint Buildings,3000,CAR PARK ROADSWEEPING DEC15-JAN16,26/02/2016,414626,2945,NET,Ken Pink Plant Hire Ltd,56884V
Gloucester City Council,23UE,Cemeteries,HC300,Basic Pay - Temporary Staff,2751,temporary staff w/e 7/2/16,29/02/2016,414439,263.93,NET,Premiere Employment Group Ltd,55468Z
Gloucester City Council,23UE,Cemeteries,HC300,Basic Pay - Temporary Staff,2751,temporary staff w/e 7/2/16,29/02/2016,414438,439.88,NET,Premiere Employment Group Ltd,55468Z
Gloucester City Council,23UE,Cemeteries,HC300,Basic Pay - Temporary Staff,2751,TEMP STAFF W/E 14/2/16,29/02/2016,414618,263.93,NET,Premiere Employment Group Ltd,55468Z
Gloucester City Council,23UE,Cemeteries,HC300,Basic Pay - Temporary Staff,2751,TEMP STAFF W/E 14/2/16,29/02/2016,414617,439.88,NET,Premiere Employment Group Ltd,55468Z
Gloucester City Council,23UE,Development Management,PT200,Basic Pay - Temporary Staff,2751,temporary staff w/e 21/2/16,29/02/2016,414895,1239.6,NET,The Oyster Partnership Limited,14900T
Gloucester City Council,23UE,Economic Development,FP300,Business Grant,7116,broadband connection voucher,29/02/2016,414898,800,NET,Bdr Voice And Data Solutions Ltd,15847K
Gloucester City Council,23UE,Economic Development,FP300,Business Grant,7116,Broadband connection voucher,29/02/2016,414897,800,NET,Bdr Voice And Data Solutions Ltd,15847K
Gloucester City Council,23UE,Equalities,EH102,Fees For Services Received,5350,RICHARDS WOOD SKIP HIRE,29/02/2016,414412,25,NET,Ken Pink Plant Hire Ltd,56884V
Gloucester City Council,23UE,Flooding And Drainage,HE306,Maint Of Grounds - General,3030,tree removal River Twyver at Abbeydale,29/02/2016,414467,340,NET,Rj Contracting (Environmental) Ltd,07429H
Gloucester City Council,23UE,REDACTED,REDACTED,REDACTED,REDACTED,REDACTED,29/02/2016,REDACTED,282.81,NET,REDACTED,REDACTED
Gloucester City Council,23UE,REDACTED,REDACTED,REDACTED,REDACTED,REDACTED,29/02/2016,REDACTED,100,NET,REDACTED,REDACTED
Gloucester City Council,23UE,REDACTED,REDACTED,REDACTED,REDACTED,REDACTED,29/02/2016,REDACTED,40,NET,REDACTED,REDACTED
Gloucester City Council,23UE,Hackney Carriages,HL100,Fees For Services Received,5350,DVLA Electronic Check,29/02/2016,412958,50.75,NET,Intelligent Data Systems (Uk) Ltd,11067G
Gloucester City Council,23UE,Hackney Carriages,HL100,Fees For Services Received,5350,DVLA Electronic Check,29/02/2016,414192,29,NET,Intelligent Data Systems (Uk) Ltd,11067G
Gloucester City Council,23UE,Homelessness,CH120,Fees For Services Received,5350,Medical Form Completion,29/02/2016,414197,20.5,NET,Bartongate Surgery,05680S
Gloucester City Council,23UE,REDACTED,REDACTED,REDACTED,REDACTED,REDACTED,29/02/2016,REDACTED,368.2,NET,REDACTED,REDACTED
Gloucester City Council,23UE,REDACTED,REDACTED,REDACTED,REDACTED,REDACTED,29/02/2016,REDACTED,395,NET,REDACTED,REDACTED
Gloucester City Council,23UE,Kings Quarter,RY146,Contract Payments,0020,supply of unit,29/02/2016,414428,6195,CAP,Cotacabin Ltd,16400A
Gloucester City Council,23UE,Licences,HE510,Reimbursements,5591,Refund - temporary event notice,29/02/2016,414912,21,NET,Gl11 Community Project,16298P
Gloucester City Council,23UE,Tourism Marketing,LT100,Exhibits And Collections,5038,FOAMEX PRINTING,29/02/2016,414434,60,NET,Squirty Ink,13834P
Gloucester City Council,23UE,Vehicles,RS140,Fuel,4012,vehicle fuel,29/02/2016,414811,201.23,NET,Allstar Business Solutions Ltd (Arval),06594A
Gloucester City Council,23UE,Contact Centre,RB300,Uniforms,5201,staff uniform,,414826,23.5,NET,Meltemi Company Clothing Limited,54572N
Gloucester City Council,23UE,Financial Services,RT200,Fees For Services Received,5350,4TH QTR 2014/15,,396966,73.15,NET,Patrol,09431C
Gloucester City Council,23UE,Flooding And Drainage,HE306,Maint Of Grounds - General,3030,Abbeydale comm centre car park,,414442,280,NET,Three Counties Drain Service,44033V
Gloucester City Council,23UE,Gloucester Guildhall,LA100,Maintenance Of Equipment,5030,Floor Refurbishment,,414306,2118,NET,Williams Flooring (Nationwide) Ltd,16235R
Gloucester City Council,23UE,REDACTED,REDACTED,REDACTED,REDACTED,REDACTED,,REDACTED,465.06,NET,REDACTED,REDACTED
Gloucester City Council,23UE,REDACTED,REDACTED,REDACTED,REDACTED,REDACTED,,REDACTED,150,NET,REDACTED,REDACTED
,,,,,,,,Sum:,2073722.54,,,
